Workbook

Sheet الإيرادات (المبيعات)
B1: الشهر الثاني عشر | AD1: اسم الشركة
B2: عرض الأرباح والخسائر | AA2: بداية السنة المالية: | AC2: يناير | AD2: =YEAR(TODAY()) -> 2017
D3: =UPPER(TEXT(DATE(FYStartYear,FYMonthNo,1),"mmm/yy")) -> يناير/17 | E3: =UPPER(TEXT(DATE(FYStartYear,FYMonthNo+1,1),"mmm/yy")) -> فبراير/17 | F3: =UPPER(TEXT(DATE(FYStartYear,FYMonthNo+2,1),"mmm/yy")) -> مارس/17 | G3: =UPPER(TEXT(DATE(FYStartYear,FYMonthNo+3,1),"mmm/yy")) -> أبريل/17 | H3: =UPPER(TEXT(DATE(FYStartYear,FYMonthNo+4,1),"mmm/yy")) -> مايو/17 | I3: =UPPER(TEXT(DATE(FYStartYear,FYMonthNo+5,1),"mmm/yy")) -> يونيو/17 | J3: =UPPER(TEXT(DATE(FYStartYear,FYMonthNo+6,1),"mmm/yy")) -> يوليو/17 | K3: =UPPER(TEXT(DATE(FYStartYear,FYMonthNo+7,1),"mmm/yy")) -> أغسطس/17 | L3: =UPPER(TEXT(DATE(FYStartYear,FYMonthNo+8,1),"mmm/yy")) -> سبتمبر/17 | M3: =UPPER(TEXT(DATE(FYStartYear,FYMonthNo+9,1),"mmm/yy")) -> أكتوبر/17 | N3: =UPPER(TEXT(DATE(FYStartYear,FYMonthNo+10,1),"mmm/yy")) -> نوفمبر/17 | O3: =UPPER(TEXT(DATE(FYStartYear,FYMonthNo+11,1),"mmm/yy")) -> ديسمبر/17 | P3: سنوياً | Q3: النسبة المئوية للفهرس | R3: =LEFT(D3,3)&" %" -> ينا % | S3: =LEFT(E3,3)&" %" -> فبر % | T3: مار % | U3: أبر % | V3: ماي % | W3: يون % | X3: يول % | Y3: أغس % | Z3: سبت % | AA3: أكت % | AB3: نوف % | AC3: ديس % | AD3: النسبة المئوية في السنة
B4: الإيرادات (المبيعات) | C4: الاتجاه | D4: يناير | E4: فبراير | F4: مارس | G4: أبريل | H4: مايو | I4: يونيو | J4: يوليو | K4: أغسطس | L4: سبتمبر | M4: أكتوبر | N4: نوفمبر | O4: ديسمبر | P4: سنوياً | Q4: النسبة المئوية للفهرس | R4: النسبة المئوية في يناير | S4: النسبة المئوية في فبراير | T4: النسبة المئوية في مارس | U4: النسبة المئوية في أبريل | V4: النسبة المئوية في مايو | W4: النسبة المئوية في يونيو | X4: النسبة المئوية في يوليو | Y4: النسبة المئوية في أغسطس | Z4: النسبة المئوية في سبتمبر | AA4: النسبة المئوية في أكتوبر | AB4: النسبة المئوية في نوفمبر | AC4: النسبة المئوية في ديسمبر | AD4: النسبة المئوية في السنة
B5: الإيرادات 1 | D5: ر.س.‏ 186 | E5: ر.س.‏ 108 | F5: ر.س.‏ 92 | G5: ر.س.‏ 122 | H5: ر.س.‏ 190 | I5: ر.س.‏ 71 | J5: ر.س.‏ 21 | K5: ر.س.‏ 37 | L5: ر.س.‏ 24 | M5: ر.س.‏ 178 | N5: ر.س.‏ 92 | O5: ر.س.‏ 97 | P5: =SUM(الإيرادات[[#This Row],[يناير]:[ديسمبر]]) -> ر.س.‏ 1,218 | Q5: 12% | R5: =IFERROR(الإيرادات[[#This Row],[يناير]]/الإيرادات[[#Totals],[يناير]],"-") -> 30% | S5: =IFERROR(الإيرادات[[#This Row],[فبراير]]/الإيرادات[[#Totals],[فبراير]],"-") -> 15% | T5: =IFERROR(الإيرادات[[#This Row],[مارس]]/الإيرادات[[#Totals],[مارس]],"-") -> 11% | U5: =IFERROR(الإيرادات[[#This Row],[أبريل]]/الإيرادات[[#Totals],[أبريل]],"-") -> 20% | V5: =IFERROR(الإيرادات[[#This Row],[مايو]]/الإيرادات[[#Totals],[مايو]],"-") -> 23% | W5: =IFERROR(الإيرادات[[#This Row],[يونيو]]/الإيرادات[[#Totals],[يونيو]],"-") -> 12% | X5: =IFERROR(الإيرادات[[#This Row],[يوليو]]/الإيرادات[[#Totals],[يوليو]],"-") -> 4% | Y5: =IFERROR(الإيرادات[[#This Row],[أغسطس]]/الإيرادات[[#Totals],[أغسطس]],"-") -> 5% | Z5: =IFERROR(الإيرادات[[#This Row],[سبتمبر]]/الإيرادات[[#Totals],[سبتمبر]],"-") -> 3% | AA5: =IFERROR(الإيرادات[[#This Row],[أكتوبر]]/الإيرادات[[#Totals],[أكتوبر]],"-") -> 26% | AB5: =IFERROR(الإيرادات[[#This Row],[نوفمبر]]/الإيرادات[[#Totals],[نوفمبر]],"-") -> 12% | AC5: =IFERROR(الإيرادات[[#This Row],[ديسمبر]]/الإيرادات[[#Totals],[ديسمبر]],"-") -> 9% | AD5: =IFERROR(الإيرادات[[#This Row],[سنوياً]]/الإيرادات[[#Totals],[سنوياً]],"-") -> 14%
B6: الإيرادات 2 | D6: ر.س.‏ 15 | E6: ر.س.‏ 16 | F6: ر.س.‏ 198 | G6: ر.س.‏ 44 | H6: ر.س.‏ 25 | I6: ر.س.‏ 68 | J6: ر.س.‏ 43 | K6: ر.س.‏ 119 | L6: ر.س.‏ 37 | M6: ر.س.‏ 118 | N6: ر.س.‏ 29 | O6: ر.س.‏ 171 | P6: =SUM(الإيرادات[[#This Row],[يناير]:[ديسمبر]]) -> ر.س.‏ 883 | Q6: 18% | R6: =IFERROR(الإيرادات[[#This Row],[يناير]]/الإيرادات[[#Totals],[يناير]],"-") -> 2% | S6: =IFERROR(الإيرادات[[#This Row],[فبراير]]/الإيرادات[[#Totals],[فبراير]],"-") -> 2% | T6: =IFERROR(الإيرادات[[#This Row],[مارس]]/الإيرادات[[#Totals],[مارس]],"-") -> 24% | U6: =IFERROR(الإيرادات[[#This Row],[أبريل]]/الإيرادات[[#Totals],[أبريل]],"-") -> 7% | V6: =IFERROR(الإيرادات[[#This Row],[مايو]]/الإيرادات[[#Totals],[مايو]],"-") -> 3% | W6: =IFERROR(الإيرادات[[#This Row],[يونيو]]/الإيرادات[[#Totals],[يونيو]],"-") -> 12% | X6: =IFERROR(الإيرادات[[#This Row],[يوليو]]/الإيرادات[[#Totals],[يوليو]],"-") -> 7% | Y6: =IFERROR(الإيرادات[[#This Row],[أغسطس]]/الإيرادات[[#Totals],[أغسطس]],"-") -> 18% | Z6: =IFERROR(الإيرادات[[#This Row],[سبتمبر]]/الإيرادات[[#Totals],[سبتمبر]],"-") -> 5% | AA6: =IFERROR(الإيرادات[[#This Row],[أكتوبر]]/الإيرادات[[#Totals],[أكتوبر]],"-") -> 17% | AB6: =IFERROR(الإيرادات[[#This Row],[نوفمبر]]/الإيرادات[[#Totals],[نوفمبر]],"-") -> 4% | AC6: =IFERROR(الإيرادات[[#This Row],[ديسمبر]]/الإيرادات[[#Totals],[ديسمبر]],"-") -> 16% | AD6: =IFERROR(الإيرادات[[#This Row],[سنوياً]]/الإيرادات[[#Totals],[سنوياً]],"-") -> 10%
B7: الإيرادات 3 | D7: ر.س.‏ 166 | E7: ر.س.‏ 185 | F7: ر.س.‏ 89 | G7: ر.س.‏ 170 | H7: ر.س.‏ 131 | I7: ر.س.‏ 70 | J7: ر.س.‏ 50 | K7: ر.س.‏ 149 | L7: ر.س.‏ 179 | M7: ر.س.‏ 104 | N7: ر.س.‏ 119 | O7: ر.س.‏ 187 | P7: =SUM(الإيرادات[[#This Row],[يناير]:[ديسمبر]]) -> ر.س.‏ 1,599 | Q7: 19% | R7: =IFERROR(الإيرادات[[#This Row],[يناير]]/الإيرادات[[#Totals],[يناير]],"-") -> 27% | S7: =IFERROR(الإيرادات[[#This Row],[فبراير]]/الإيرادات[[#Totals],[فبراير]],"-") -> 25% | T7: =IFERROR(الإيرادات[[#This Row],[مارس]]/الإيرادات[[#Totals],[مارس]],"-") -> 11% | U7: =IFERROR(الإيرادات[[#This Row],[أبريل]]/الإيرادات[[#Totals],[أبريل]],"-") -> 28% | V7: =IFERROR(الإيرادات[[#This Row],[مايو]]/الإيرادات[[#Totals],[مايو]],"-") -> 16% | W7: =IFERROR(الإيرادات[[#This Row],[يونيو]]/الإيرادات[[#Totals],[يونيو]],"-") -> 12% | X7: =IFERROR(الإيرادات[[#This Row],[يوليو]]/الإيرادات[[#Totals],[يوليو]],"-") -> 8% | Y7: =IFERROR(الإيرادات[[#This Row],[أغسطس]]/الإيرادات[[#Totals],[أغسطس]],"-") -> 22% | Z7: =IFERROR(الإيرادات[[#This Row],[سبتمبر]]/الإيرادات[[#Totals],[سبتمبر]],"-") -> 24% | AA7: =IFERROR(الإيرادات[[#This Row],[أكتوبر]]/الإيرادات[[#Totals],[أكتوبر]],"-") -> 15% | AB7: =IFERROR(الإيرادات[[#This Row],[نوفمبر]]/الإيرادات[[#Totals],[نوفمبر]],"-") -> 16% | AC7: =IFERROR(الإيرادات[[#This Row],[ديسمبر]]/الإيرادات[[#Totals],[ديسمبر]],"-") -> 18% | AD7: =IFERROR(الإيرادات[[#This Row],[سنوياً]]/الإيرادات[[#Totals],[سنوياً]],"-") -> 18%
B8: الإيرادات 4 | D8: ر.س.‏ 21 | E8: ر.س.‏ 113 | F8: ر.س.‏ 83 | G8: ر.س.‏ 17 | H8: ر.س.‏ 130 | I8: ر.س.‏ 26 | J8: ر.س.‏ 167 | K8: ر.س.‏ 102 | L8: ر.س.‏ 82 | M8: ر.س.‏ 33 | N8: ر.س.‏ 88 | O8: ر.س.‏ 193 | P8: =SUM(الإيرادات[[#This Row],[يناير]:[ديسمبر]]) -> ر.س.‏ 1,055 | Q8: 11% | R8: =IFERROR(الإيرادات[[#This Row],[يناير]]/الإيرادات[[#Totals],[يناير]],"-") -> 3% | S8: =IFERROR(الإيرادات[[#This Row],[فبراير]]/الإيرادات[[#Totals],[فبراير]],"-") -> 15% | T8: =IFERROR(الإيرادات[[#This Row],[مارس]]/الإيرادات[[#Totals],[مارس]],"-") -> 10% | U8: =IFERROR(الإيرادات[[#This Row],[أبريل]]/الإيرادات[[#Totals],[أبريل]],"-") -> 3% | V8: =IFERROR(الإيرادات[[#This Row],[مايو]]/الإيرادات[[#Totals],[مايو]],"-") -> 16% | W8: =IFERROR(الإيرادات[[#This Row],[يونيو]]/الإيرادات[[#Totals],[يونيو]],"-") -> 4% | X8: =IFERROR(الإيرادات[[#This Row],[يوليو]]/الإيرادات[[#Totals],[يوليو]],"-") -> 28% | Y8: =IFERROR(الإيرادات[[#This Row],[أغسطس]]/الإيرادات[[#Totals],[أغسطس]],"-") -> 15% | Z8: =IFERROR(الإيرادات[[#This Row],[سبتمبر]]/الإيرادات[[#Totals],[سبتمبر]],"-") -> 11% | AA8: =IFERROR(الإيرادات[[#This Row],[أكتوبر]]/الإيرادات[[#Totals],[أكتوبر]],"-") -> 5% | AB8: =IFERROR(الإيرادات[[#This Row],[نوفمبر]]/الإيرادات[[#Totals],[نوفمبر]],"-") -> 12% | AC8: =IFERROR(الإيرادات[[#This Row],[ديسمبر]]/الإيرادات[[#Totals],[ديسمبر]],"-") -> 19% | AD8: =IFERROR(الإيرادات[[#This Row],[سنوياً]]/الإيرادات[[#Totals],[سنوياً]],"-") -> 12%
B9: الإيرادات 5 | D9: ر.س.‏ 70 | E9: ر.س.‏ 160 | F9: ر.س.‏ 125 | G9: ر.س.‏ 84 | H9: ر.س.‏ 191 | I9: ر.س.‏ 97 | J9: ر.س.‏ 52 | K9: ر.س.‏ 45 | L9: ر.س.‏ 173 | M9: ر.س.‏ 136 | N9: ر.س.‏ 144 | O9: ر.س.‏ 167 | P9: =SUM(الإيرادات[[#This Row],[يناير]:[ديسمبر]]) -> ر.س.‏ 1,444 | Q9: 20% | R9: =IFERROR(الإيرادات[[#This Row],[يناير]]/الإيرادات[[#Totals],[يناير]],"-") -> 11% | S9: =IFERROR(الإيرادات[[#This Row],[فبراير]]/الإيرادات[[#Totals],[فبراير]],"-") -> 22% | T9: =IFERROR(الإيرادات[[#This Row],[مارس]]/الإيرادات[[#Totals],[مارس]],"-") -> 15% | U9: =IFERROR(الإيرادات[[#This Row],[أبريل]]/الإيرادات[[#Totals],[أبريل]],"-") -> 14% | V9: =IFERROR(الإيرادات[[#This Row],[مايو]]/الإيرادات[[#Totals],[مايو]],"-") -> 24% | W9: =IFERROR(الإيرادات[[#This Row],[يونيو]]/الإيرادات[[#Totals],[يونيو]],"-") -> 17% | X9: =IFERROR(الإيرادات[[#This Row],[يوليو]]/الإيرادات[[#Totals],[يوليو]],"-") -> 9% | Y9: =IFERROR(الإيرادات[[#This Row],[أغسطس]]/الإيرادات[[#Totals],[أغسطس]],"-") -> 7% | Z9: =IFERROR(الإيرادات[[#This Row],[سبتمبر]]/الإيرادات[[#Totals],[سبتمبر]],"-") -> 23% | AA9: =IFERROR(الإيرادات[[#This Row],[أكتوبر]]/الإيرادات[[#Totals],[أكتوبر]],"-") -> 20% | AB9: =IFERROR(الإيرادات[[#This Row],[نوفمبر]]/الإيرادات[[#Totals],[نوفمبر]],"-") -> 19% | AC9: =IFERROR(الإيرادات[[#This Row],[ديسمبر]]/الإيرادات[[#Totals],[ديسمبر]],"-") -> 16% | AD9: =IFERROR(الإيرادات[[#This Row],[سنوياً]]/الإيرادات[[#Totals],[سنوياً]],"-") -> 17%
B10: الإيرادات 6 | D10: ر.س.‏ 61 | E10: ر.س.‏ 99 | F10: ر.س.‏ 70 | G10: ر.س.‏ 162 | H10: ر.س.‏ 28 | I10: ر.س.‏ 163 | J10: ر.س.‏ 101 | K10: ر.س.‏ 103 | L10: ر.س.‏ 78 | M10: ر.س.‏ 33 | N10: ر.س.‏ 162 | O10: ر.س.‏ 159 | P10: =SUM(الإيرادات[[#This Row],[يناير]:[ديسمبر]]) -> ر.س.‏ 1,219 | Q10: 10% | R10: =IFERROR(الإيرادات[[#This Row],[يناير]]/الإيرادات[[#Totals],[يناير]],"-") -> 10% | S10: =IFERROR(الإيرادات[[#This Row],[فبراير]]/الإيرادات[[#Totals],[فبراير]],"-") -> 13% | T10: =IFERROR(الإيرادات[[#This Row],[مارس]]/الإيرادات[[#Totals],[مارس]],"-") -> 9% | U10: =IFERROR(الإيرادات[[#This Row],[أبريل]]/الإيرادات[[#Totals],[أبريل]],"-") -> 27% | V10: =IFERROR(الإيرادات[[#This Row],[مايو]]/الإيرادات[[#Totals],[مايو]],"-") -> 3% | W10: =IFERROR(الإيرادات[[#This Row],[يونيو]]/الإيرادات[[#Totals],[يونيو]],"-") -> 28% | X10: =IFERROR(الإيرادات[[#This Row],[يوليو]]/الإيرادات[[#Totals],[يوليو]],"-") -> 17% | Y10: =IFERROR(الإيرادات[[#This Row],[أغسطس]]/الإيرادات[[#Totals],[أغسطس]],"-") -> 15% | Z10: =IFERROR(الإيرادات[[#This Row],[سبتمبر]]/الإيرادات[[#Totals],[سبتمبر]],"-") -> 10% | AA10: =IFERROR(الإيرادات[[#This Row],[أكتوبر]]/الإيرادات[[#Totals],[أكتوبر]],"-") -> 5% | AB10: =IFERROR(الإيرادات[[#This Row],[نوفمبر]]/الإيرادات[[#Totals],[نوفمبر]],"-") -> 22% | AC10: =IFERROR(الإيرادات[[#This Row],[ديسمبر]]/الإيرادات[[#Totals],[ديسمبر]],"-") -> 15% | AD10: =IFERROR(الإيرادات[[#This Row],[سنوياً]]/الإيرادات[[#Totals],[سنوياً]],"-") -> 14%
B11: الإيرادات 7 | D11: ر.س.‏ 105 | E11: ر.س.‏ 55 | F11: ر.س.‏ 163 | G11: ر.س.‏ 12 | H11: ر.س.‏ 117 | I11: ر.س.‏ 83 | J11: ر.س.‏ 163 | K11: ر.س.‏ 120 | L11: ر.س.‏ 171 | M11: ر.س.‏ 79 | N11: ر.س.‏ 105 | O11: ر.س.‏ 69 | P11: =SUM(الإيرادات[[#This Row],[يناير]:[ديسمبر]]) -> ر.س.‏ 1,242 | Q11: 10% | R11: =IFERROR(الإيرادات[[#This Row],[يناير]]/الإيرادات[[#Totals],[يناير]],"-") -> 17% | S11: =IFERROR(الإيرادات[[#This Row],[فبراير]]/الإيرادات[[#Totals],[فبراير]],"-") -> 7% | T11: =IFERROR(الإيرادات[[#This Row],[مارس]]/الإيرادات[[#Totals],[مارس]],"-") -> 20% | U11: =IFERROR(الإيرادات[[#This Row],[أبريل]]/الإيرادات[[#Totals],[أبريل]],"-") -> 2% | V11: =IFERROR(الإيرادات[[#This Row],[مايو]]/الإيرادات[[#Totals],[مايو]],"-") -> 14% | W11: =IFERROR(الإيرادات[[#This Row],[يونيو]]/الإيرادات[[#Totals],[يونيو]],"-") -> 14% | X11: =IFERROR(الإيرادات[[#This Row],[يوليو]]/الإيرادات[[#Totals],[يوليو]],"-") -> 27% | Y11: =IFERROR(الإيرادات[[#This Row],[أغسطس]]/الإيرادات[[#Totals],[أغسطس]],"-") -> 18% | Z11: =IFERROR(الإيرادات[[#This Row],[سبتمبر]]/الإيرادات[[#Totals],[سبتمبر]],"-") -> 23% | AA11: =IFERROR(الإيرادات[[#This Row],[أكتوبر]]/الإيرادات[[#Totals],[أكتوبر]],"-") -> 12% | AB11: =IFERROR(الإيرادات[[#This Row],[نوفمبر]]/الإيرادات[[#Totals],[نوفمبر]],"-") -> 14% | AC11: =IFERROR(الإيرادات[[#This Row],[ديسمبر]]/الإيرادات[[#Totals],[ديسمبر]],"-") -> 7% | AD11: =IFERROR(الإيرادات[[#This Row],[سنوياً]]/الإيرادات[[#Totals],[سنوياً]],"-") -> 14%
B12: إجمالي المبيعات | D12: =SUBTOTAL(109,الإيرادات[يناير]) -> ر.س.‏ 624 | E12: =SUBTOTAL(109,الإيرادات[فبراير]) -> ر.س.‏ 736 | F12: =SUBTOTAL(109,الإيرادات[مارس]) -> ر.س.‏ 820 | G12: =SUBTOTAL(109,الإيرادات[أبريل]) -> ر.س.‏ 611 | H12: =SUBTOTAL(109,الإيرادات[مايو]) -> ر.س.‏ 812 | I12: =SUBTOTAL(109,الإيرادات[يونيو]) -> ر.س.‏ 578 | J12: =SUBTOTAL(109,الإيرادات[يوليو]) -> ر.س.‏ 597 | K12: =SUBTOTAL(109,الإيرادات[أغسطس]) -> ر.س.‏ 675 | L12: =SUBTOTAL(109,الإيرادات[سبتمبر]) -> ر.س.‏ 744 | M12: =SUBTOTAL(109,الإيرادات[أكتوبر]) -> ر.س.‏ 681 | N12: =SUBTOTAL(109,الإيرادات[نوفمبر]) -> ر.س.‏ 739 | O12: =SUBTOTAL(109,الإيرادات[ديسمبر]) -> ر.س.‏ 1,043 | P12: =SUBTOTAL(109,الإيرادات[سنوياً]) -> ر.س.‏ 8,660 | Q12: =SUBTOTAL(109,الإيرادات[النسبة المئوية للفهرس]) -> 100% | R12: =SUBTOTAL(109,الإيرادات[النسبة المئوية في يناير]) -> 100% | S12: =SUBTOTAL(109,الإيرادات[النسبة المئوية في فبراير]) -> 100% | T12: =SUBTOTAL(109,الإيرادات[النسبة المئوية في مارس]) -> 100% | U12: =SUBTOTAL(109,الإيرادات[النسبة المئوية في أبريل]) -> 100% | V12: =SUBTOTAL(109,الإيرادات[النسبة المئوية في مايو]) -> 100% | W12: =SUBTOTAL(109,الإيرادات[النسبة المئوية في يونيو]) -> 100% | X12: =SUBTOTAL(109,الإيرادات[النسبة المئوية في يوليو]) -> 100% | Y12: =SUBTOTAL(109,الإيرادات[النسبة المئوية في أغسطس]) -> 100% | Z12: =SUBTOTAL(109,الإيرادات[النسبة المئوية في سبتمبر]) -> 100% | AA12: =SUBTOTAL(109,الإيرادات[النسبة المئوية في أكتوبر]) -> 100% | AB12: =SUBTOTAL(109,الإيرادات[النسبة المئوية في نوفمبر]) -> 100% | AC12: =SUBTOTAL(109,الإيرادات[النسبة المئوية في ديسمبر]) -> 100% | AD12: =SUBTOTAL(109,الإيرادات[النسبة المئوية في السنة]) -> 100%

Sheet تكلفة المبيعات
B1: =Projection_Period_Title -> الشهر الثاني عشر | AD1: =اسم_الشركة -> اسم الشركة
B2: =Wksht_Title -> عرض الأرباح والخسائر | AA2: السنة المالية: | AC2: =FYMonthStart -> يناير | AD2: =FYStartYear -> 2017
D3: =UPPER(TEXT(DATE(FYStartYear,FYMonthNo,1),"mmm/yy")) -> يناير/17 | E3: =UPPER(TEXT(DATE(FYStartYear,FYMonthNo+1,1),"mmm/yy")) -> فبراير/17 | F3: =UPPER(TEXT(DATE(FYStartYear,FYMonthNo+2,1),"mmm/yy")) -> مارس/17 | G3: =UPPER(TEXT(DATE(FYStartYear,FYMonthNo+3,1),"mmm/yy")) -> أبريل/17 | H3: =UPPER(TEXT(DATE(FYStartYear,FYMonthNo+4,1),"mmm/yy")) -> مايو/17 | I3: =UPPER(TEXT(DATE(FYStartYear,FYMonthNo+5,1),"mmm/yy")) -> يونيو/17 | J3: =UPPER(TEXT(DATE(FYStartYear,FYMonthNo+6,1),"mmm/yy")) -> يوليو/17 | K3: =UPPER(TEXT(DATE(FYStartYear,FYMonthNo+7,1),"mmm/yy")) -> أغسطس/17 | L3: =UPPER(TEXT(DATE(FYStartYear,FYMonthNo+8,1),"mmm/yy")) -> سبتمبر/17 | M3: =UPPER(TEXT(DATE(FYStartYear,FYMonthNo+9,1),"mmm/yy")) -> أكتوبر/17 | N3: =UPPER(TEXT(DATE(FYStartYear,FYMonthNo+10,1),"mmm/yy")) -> نوفمبر/17 | O3: =UPPER(TEXT(DATE(FYStartYear,FYMonthNo+11,1),"mmm/yy")) -> ديسمبر/17 | P3: سنوياً | Q3: النسبة المئوية للفهرس | R3: =LEFT(D3,3)&" %" -> ينا % | S3: =LEFT(E3,3)&" %" -> فبر % | T3: مار % | U3: أبر % | V3: ماي % | W3: يون % | X3: يول % | Y3: أغس % | Z3: سبت % | AA3: أكت % | AB3: نوف % | AC3: ديس % | AD3: النسبة المئوية في السنة
B4: تكلفة المبيعات | C4: الاتجاه | D4: يناير | E4: فبراير | F4: مارس | G4: أبريل | H4: مايو | I4: يونيو | J4: يوليو | K4: أغسطس | L4: سبتمبر | M4: أكتوبر | N4: نوفمبر | O4: ديسمبر | P4: سنوياً | Q4: النسبة المئوية للفهرس | R4: النسبة المئوية في يناير | S4: النسبة المئوية في فبراير | T4: النسبة المئوية في مارس | U4: النسبة المئوية في أبريل | V4: النسبة المئوية في مايو | W4: النسبة المئوية في يونيو | X4: النسبة المئوية في يوليو | Y4: النسبة المئوية في أغسطس | Z4: النسبة المئوية في سبتمبر | AA4: النسبة المئوية في أكتوبر | AB4: النسبة المئوية في نوفمبر | AC4: النسبة المئوية في ديسمبر | AD4: النسبة المئوية في السنة
B5: التكلفة 1 | D5: ر.س.‏ 61 | E5: ر.س.‏ 78 | F5: ر.س.‏ 65 | G5: ر.س.‏ 29 | H5: ر.س.‏ 125 | I5: ر.س.‏ 49 | J5: ر.س.‏ 14 | K5: ر.س.‏ 26 | L5: ر.س.‏ 14 | M5: ر.س.‏ 129 | N5: ر.س.‏ 60 | O5: ر.س.‏ 65 | P5: =SUM(تكلفةالمبيعات[[#This Row],[يناير]:[ديسمبر]]) -> ر.س.‏ 715 | Q5: 12% | R5: =IFERROR(تكلفةالمبيعات[[#This Row],[يناير]]/تكلفةالمبيعات[[#Totals],[يناير]],"-") -> 23% | S5: =IFERROR(تكلفةالمبيعات[[#This Row],[فبراير]]/تكلفةالمبيعات[[#Totals],[فبراير]],"-") -> 22% | T5: =IFERROR(تكلفةالمبيعات[[#This Row],[مارس]]/تكلفةالمبيعات[[#Totals],[مارس]],"-") -> 21% | U5: =IFERROR(تكلفةالمبيعات[[#This Row],[أبريل]]/تكلفةالمبيعات[[#Totals],[أبريل]],"-") -> 12% | V5: =IFERROR(تكلفةالمبيعات[[#This Row],[مايو]]/تكلفةالمبيعات[[#Totals],[مايو]],"-") -> 31% | W5: =IFERROR(تكلفةالمبيعات[[#This Row],[يونيو]]/تكلفةالمبيعات[[#Totals],[يونيو]],"-") -> 16% | X5: =IFERROR(تكلفةالمبيعات[[#This Row],[يوليو]]/تكلفةالمبيعات[[#Totals],[يوليو]],"-") -> 5% | Y5: =IFERROR(تكلفةالمبيعات[[#This Row],[أغسطس]]/تكلفةالمبيعات[[#Totals],[أغسطس]],"-") -> 12% | Z5: =IFERROR(تكلفةالمبيعات[[#This Row],[سبتمبر]]/تكلفةالمبيعات[[#Totals],[سبتمبر]],"-") -> 3% | AA5: =IFERROR(تكلفةالمبيعات[[#This Row],[أكتوبر]]/تكلفةالمبيعات[[#Totals],[أكتوبر]],"-") -> 47% | AB5: =IFERROR(تكلفةالمبيعات[[#This Row],[نوفمبر]]/تكلفةالمبيعات[[#Totals],[نوفمبر]],"-") -> 23% | AC5: =IFERROR(تكلفةالمبيعات[[#This Row],[ديسمبر]]/تكلفةالمبيعات[[#Totals],[ديسمبر]],"-") -> 14% | AD5: =SUM(تكلفةالمبيعات[[#This Row],[النسبة المئوية في يناير]:[النسبة المئوية في ديسمبر]]) -> 228%
B6: التكلفة 2 | D6: ر.س.‏ 7 | E6: ر.س.‏ 5 | F6: ر.س.‏ 69 | G6: ر.س.‏ 32 | H6: ر.س.‏ 11 | I6: ر.س.‏ 30 | J6: ر.س.‏ 27 | K6: ر.س.‏ 32 | L6: ر.س.‏ 10 | M6: ر.س.‏ 41 | N6: ر.س.‏ 13 | O6: ر.س.‏ 105 | P6: =SUM(تكلفةالمبيعات[[#This Row],[يناير]:[ديسمبر]]) -> ر.س.‏ 382 | Q6: 18% | R6: =IFERROR(تكلفةالمبيعات[[#This Row],[يناير]]/تكلفةالمبيعات[[#Totals],[يناير]],"-") -> 3% | S6: =IFERROR(تكلفةالمبيعات[[#This Row],[فبراير]]/تكلفةالمبيعات[[#Totals],[فبراير]],"-") -> 1% | T6: =IFERROR(تكلفةالمبيعات[[#This Row],[مارس]]/تكلفةالمبيعات[[#Totals],[مارس]],"-") -> 22% | U6: =IFERROR(تكلفةالمبيعات[[#This Row],[أبريل]]/تكلفةالمبيعات[[#Totals],[أبريل]],"-") -> 13% | V6: =IFERROR(تكلفةالمبيعات[[#This Row],[مايو]]/تكلفةالمبيعات[[#Totals],[مايو]],"-") -> 3% | W6: =IFERROR(تكلفةالمبيعات[[#This Row],[يونيو]]/تكلفةالمبيعات[[#Totals],[يونيو]],"-") -> 10% | X6: =IFERROR(تكلفةالمبيعات[[#This Row],[يوليو]]/تكلفةالمبيعات[[#Totals],[يوليو]],"-") -> 9% | Y6: =IFERROR(تكلفةالمبيعات[[#This Row],[أغسطس]]/تكلفةالمبيعات[[#Totals],[أغسطس]],"-") -> 14% | Z6: =IFERROR(تكلفةالمبيعات[[#This Row],[سبتمبر]]/تكلفةالمبيعات[[#Totals],[سبتمبر]],"-") -> 2% | AA6: =IFERROR(تكلفةالمبيعات[[#This Row],[أكتوبر]]/تكلفةالمبيعات[[#Totals],[أكتوبر]],"-") -> 15% | AB6: =IFERROR(تكلفةالمبيعات[[#This Row],[نوفمبر]]/تكلفةالمبيعات[[#Totals],[نوفمبر]],"-") -> 5% | AC6: =IFERROR(تكلفةالمبيعات[[#This Row],[ديسمبر]]/تكلفةالمبيعات[[#Totals],[ديسمبر]],"-") -> 23% | AD6: =SUM(تكلفةالمبيعات[[#This Row],[النسبة المئوية في يناير]:[النسبة المئوية في ديسمبر]]) -> 120%
B7: التكلفة 3 | D7: ر.س.‏ 99 | E7: ر.س.‏ 95 | F7: ر.س.‏ 51 | G7: ر.س.‏ 90 | H7: ر.س.‏ 21 | I7: ر.س.‏ 34 | J7: ر.س.‏ 30 | K7: ر.س.‏ 24 | L7: ر.س.‏ 109 | M7: ر.س.‏ 16 | N7: ر.س.‏ 21 | O7: ر.س.‏ 52 | P7: =SUM(تكلفةالمبيعات[[#This Row],[يناير]:[ديسمبر]]) -> ر.س.‏ 642 | Q7: 19% | R7: =IFERROR(تكلفةالمبيعات[[#This Row],[يناير]]/تكلفةالمبيعات[[#Totals],[يناير]],"-") -> 37% | S7: =IFERROR(تكلفةالمبيعات[[#This Row],[فبراير]]/تكلفةالمبيعات[[#Totals],[فبراير]],"-") -> 27% | T7: =IFERROR(تكلفةالمبيعات[[#This Row],[مارس]]/تكلفةالمبيعات[[#Totals],[مارس]],"-") -> 16% | U7: =IFERROR(تكلفةالمبيعات[[#This Row],[أبريل]]/تكلفةالمبيعات[[#Totals],[أبريل]],"-") -> 37% | V7: =IFERROR(تكلفةالمبيعات[[#This Row],[مايو]]/تكلفةالمبيعات[[#Totals],[مايو]],"-") -> 5% | W7: =IFERROR(تكلفةالمبيعات[[#This Row],[يونيو]]/تكلفةالمبيعات[[#Totals],[يونيو]],"-") -> 11% | X7: =IFERROR(تكلفةالمبيعات[[#This Row],[يوليو]]/تكلفةالمبيعات[[#Totals],[يوليو]],"-") -> 10% | Y7: =IFERROR(تكلفةالمبيعات[[#This Row],[أغسطس]]/تكلفةالمبيعات[[#Totals],[أغسطس]],"-") -> 11% | Z7: =IFERROR(تكلفةالمبيعات[[#This Row],[سبتمبر]]/تكلفةالمبيعات[[#Totals],[سبتمبر]],"-") -> 26% | AA7: =IFERROR(تكلفةالمبيعات[[#This Row],[أكتوبر]]/تكلفةالمبيعات[[#Totals],[أكتوبر]],"-") -> 6% | AB7: =IFERROR(تكلفةالمبيعات[[#This Row],[نوفمبر]]/تكلفةالمبيعات[[#Totals],[نوفمبر]],"-") -> 8% | AC7: =IFERROR(تكلفةالمبيعات[[#This Row],[ديسمبر]]/تكلفةالمبيعات[[#Totals],[ديسمبر]],"-") -> 11% | AD7: =SUM(تكلفةالمبيعات[[#This Row],[النسبة المئوية في يناير]:[النسبة المئوية في ديسمبر]]) -> 206%
B8: التكلفة 4 | D8: ر.س.‏ 13 | E8: ر.س.‏ 28 | F8: ر.س.‏ 15 | G8: ر.س.‏ 8 | H8: ر.س.‏ 84 | I8: ر.س.‏ 12 | J8: ر.س.‏ 54 | K8: ر.س.‏ 72 | L8: ر.س.‏ 49 | M8: ر.س.‏ 24 | N8: ر.س.‏ 60 | O8: ر.س.‏ 39 | P8: =SUM(تكلفةالمبيعات[[#This Row],[يناير]:[ديسمبر]]) -> ر.س.‏ 458 | Q8: 11% | R8: =IFERROR(تكلفةالمبيعات[[#This Row],[يناير]]/تكلفةالمبيعات[[#Totals],[يناير]],"-") -> 5% | S8: =IFERROR(تكلفةالمبيعات[[#This Row],[فبراير]]/تكلفةالمبيعات[[#Totals],[فبراير]],"-") -> 8% | T8: =IFERROR(تكلفةالمبيعات[[#This Row],[مارس]]/تكلفةالمبيعات[[#Totals],[مارس]],"-") -> 5% | U8: =IFERROR(تكلفةالمبيعات[[#This Row],[أبريل]]/تكلفةالمبيعات[[#Totals],[أبريل]],"-") -> 3% | V8: =IFERROR(تكلفةالمبيعات[[#This Row],[مايو]]/تكلفةالمبيعات[[#Totals],[مايو]],"-") -> 21% | W8: =IFERROR(تكلفةالمبيعات[[#This Row],[يونيو]]/تكلفةالمبيعات[[#Totals],[يونيو]],"-") -> 4% | X8: =IFERROR(تكلفةالمبيعات[[#This Row],[يوليو]]/تكلفةالمبيعات[[#Totals],[يوليو]],"-") -> 18% | Y8: =IFERROR(تكلفةالمبيعات[[#This Row],[أغسطس]]/تكلفةالمبيعات[[#Totals],[أغسطس]],"-") -> 32% | Z8: =IFERROR(تكلفةالمبيعات[[#This Row],[سبتمبر]]/تكلفةالمبيعات[[#Totals],[سبتمبر]],"-") -> 12% | AA8: =IFERROR(تكلفةالمبيعات[[#This Row],[أكتوبر]]/تكلفةالمبيعات[[#Totals],[أكتوبر]],"-") -> 9% | AB8: =IFERROR(تكلفةالمبيعات[[#This Row],[نوفمبر]]/تكلفةالمبيعات[[#Totals],[نوفمبر]],"-") -> 23% | AC8: =IFERROR(تكلفةالمبيعات[[#This Row],[ديسمبر]]/تكلفةالمبيعات[[#Totals],[ديسمبر]],"-") -> 9% | AD8: =SUM(تكلفةالمبيعات[[#This Row],[النسبة المئوية في يناير]:[النسبة المئوية في ديسمبر]]) -> 148%
B9: التكلفة 5 | D9: ر.س.‏ 34 | E9: ر.س.‏ 78 | F9: ر.س.‏ 43 | G9: ر.س.‏ 30 | H9: ر.س.‏ 77 | I9: ر.س.‏ 54 | J9: ر.س.‏ 26 | K9: ر.س.‏ 13 | L9: ر.س.‏ 56 | M9: ر.س.‏ 30 | N9: ر.س.‏ 40 | O9: ر.س.‏ 63 | P9: =SUM(تكلفةالمبيعات[[#This Row],[يناير]:[ديسمبر]]) -> ر.س.‏ 544 | Q9: 20% | R9: =IFERROR(تكلفةالمبيعات[[#This Row],[يناير]]/تكلفةالمبيعات[[#Totals],[يناير]],"-") -> 13% | S9: =IFERROR(تكلفةالمبيعات[[#This Row],[فبراير]]/تكلفةالمبيعات[[#Totals],[فبراير]],"-") -> 22% | T9: =IFERROR(تكلفةالمبيعات[[#This Row],[مارس]]/تكلفةالمبيعات[[#Totals],[مارس]],"-") -> 14% | U9: =IFERROR(تكلفةالمبيعات[[#This Row],[أبريل]]/تكلفةالمبيعات[[#Totals],[أبريل]],"-") -> 12% | V9: =IFERROR(تكلفةالمبيعات[[#This Row],[مايو]]/تكلفةالمبيعات[[#Totals],[مايو]],"-") -> 19% | W9: =IFERROR(تكلفةالمبيعات[[#This Row],[يونيو]]/تكلفةالمبيعات[[#Totals],[يونيو]],"-") -> 17% | X9: =IFERROR(تكلفةالمبيعات[[#This Row],[يوليو]]/تكلفةالمبيعات[[#Totals],[يوليو]],"-") -> 9% | Y9: =IFERROR(تكلفةالمبيعات[[#This Row],[أغسطس]]/تكلفةالمبيعات[[#Totals],[أغسطس]],"-") -> 6% | Z9: =IFERROR(تكلفةالمبيعات[[#This Row],[سبتمبر]]/تكلفةالمبيعات[[#Totals],[سبتمبر]],"-") -> 14% | AA9: =IFERROR(تكلفةالمبيعات[[#This Row],[أكتوبر]]/تكلفةالمبيعات[[#Totals],[أكتوبر]],"-") -> 11% | AB9: =IFERROR(تكلفةالمبيعات[[#This Row],[نوفمبر]]/تكلفةالمبيعات[[#Totals],[نوفمبر]],"-") -> 15% | AC9: =IFERROR(تكلفةالمبيعات[[#This Row],[ديسمبر]]/تكلفةالمبيعات[[#Totals],[ديسمبر]],"-") -> 14% | AD9: =SUM(تكلفةالمبيعات[[#This Row],[النسبة المئوية في يناير]:[النسبة المئوية في ديسمبر]]) -> 165%
B10: التكلفة 6 | D10: ر.س.‏ 33 | E10: ر.س.‏ 61 | F10: ر.س.‏ 42 | G10: ر.س.‏ 43 | H10: ر.س.‏ 19 | I10: ر.س.‏ 94 | J10: ر.س.‏ 46 | K10: ر.س.‏ 15 | L10: ر.س.‏ 55 | M10: ر.س.‏ 15 | N10: ر.س.‏ 37 | O10: ر.س.‏ 89 | P10: =SUM(تكلفةالمبيعات[[#This Row],[يناير]:[ديسمبر]]) -> ر.س.‏ 549 | Q10: 10% | R10: =IFERROR(تكلفةالمبيعات[[#This Row],[يناير]]/تكلفةالمبيعات[[#Totals],[يناير]],"-") -> 12% | S10: =IFERROR(تكلفةالمبيعات[[#This Row],[فبراير]]/تكلفةالمبيعات[[#Totals],[فبراير]],"-") -> 17% | T10: =IFERROR(تكلفةالمبيعات[[#This Row],[مارس]]/تكلفةالمبيعات[[#Totals],[مارس]],"-") -> 13% | U10: =IFERROR(تكلفةالمبيعات[[#This Row],[أبريل]]/تكلفةالمبيعات[[#Totals],[أبريل]],"-") -> 18% | V10: =IFERROR(تكلفةالمبيعات[[#This Row],[مايو]]/تكلفةالمبيعات[[#Totals],[مايو]],"-") -> 5% | W10: =IFERROR(تكلفةالمبيعات[[#This Row],[يونيو]]/تكلفةالمبيعات[[#Totals],[يونيو]],"-") -> 30% | X10: =IFERROR(تكلفةالمبيعات[[#This Row],[يوليو]]/تكلفةالمبيعات[[#Totals],[يوليو]],"-") -> 15% | Y10: =IFERROR(تكلفةالمبيعات[[#This Row],[أغسطس]]/تكلفةالمبيعات[[#Totals],[أغسطس]],"-") -> 7% | Z10: =IFERROR(تكلفةالمبيعات[[#This Row],[سبتمبر]]/تكلفةالمبيعات[[#Totals],[سبتمبر]],"-") -> 13% | AA10: =IFERROR(تكلفةالمبيعات[[#This Row],[أكتوبر]]/تكلفةالمبيعات[[#Totals],[أكتوبر]],"-") -> 5% | AB10: =IFERROR(تكلفةالمبيعات[[#This Row],[نوفمبر]]/تكلفةالمبيعات[[#Totals],[نوفمبر]],"-") -> 14% | AC10: =IFERROR(تكلفةالمبيعات[[#This Row],[ديسمبر]]/تكلفةالمبيعات[[#Totals],[ديسمبر]],"-") -> 20% | AD10: =SUM(تكلفةالمبيعات[[#This Row],[النسبة المئوية في يناير]:[النسبة المئوية في ديسمبر]]) -> 170%
B11: التكلفة 7 | D11: ر.س.‏ 18 | E11: ر.س.‏ 11 | F11: ر.س.‏ 30 | G11: ر.س.‏ 9 | H11: ر.س.‏ 62 | I11: ر.س.‏ 39 | J11: ر.س.‏ 102 | K11: ر.س.‏ 44 | L11: ر.س.‏ 121 | M11: ر.س.‏ 19 | N11: ر.س.‏ 33 | O11: ر.س.‏ 40 | P11: =SUM(تكلفةالمبيعات[[#This Row],[يناير]:[ديسمبر]]) -> ر.س.‏ 528 | Q11: 10% | R11: =IFERROR(تكلفةالمبيعات[[#This Row],[يناير]]/تكلفةالمبيعات[[#Totals],[يناير]],"-") -> 7% | S11: =IFERROR(تكلفةالمبيعات[[#This Row],[فبراير]]/تكلفةالمبيعات[[#Totals],[فبراير]],"-") -> 3% | T11: =IFERROR(تكلفةالمبيعات[[#This Row],[مارس]]/تكلفةالمبيعات[[#Totals],[مارس]],"-") -> 10% | U11: =IFERROR(تكلفةالمبيعات[[#This Row],[أبريل]]/تكلفةالمبيعات[[#Totals],[أبريل]],"-") -> 4% | V11: =IFERROR(تكلفةالمبيعات[[#This Row],[مايو]]/تكلفةالمبيعات[[#Totals],[مايو]],"-") -> 16% | W11: =IFERROR(تكلفةالمبيعات[[#This Row],[يونيو]]/تكلفةالمبيعات[[#Totals],[يونيو]],"-") -> 13% | X11: =IFERROR(تكلفةالمبيعات[[#This Row],[يوليو]]/تكلفةالمبيعات[[#Totals],[يوليو]],"-") -> 34% | Y11: =IFERROR(تكلفةالمبيعات[[#This Row],[أغسطس]]/تكلفةالمبيعات[[#Totals],[أغسطس]],"-") -> 19% | Z11: =IFERROR(تكلفةالمبيعات[[#This Row],[سبتمبر]]/تكلفةالمبيعات[[#Totals],[سبتمبر]],"-") -> 29% | AA11: =IFERROR(تكلفةالمبيعات[[#This Row],[أكتوبر]]/تكلفةالمبيعات[[#Totals],[أكتوبر]],"-") -> 7% | AB11: =IFERROR(تكلفةالمبيعات[[#This Row],[نوفمبر]]/تكلفةالمبيعات[[#Totals],[نوفمبر]],"-") -> 13% | AC11: =IFERROR(تكلفةالمبيعات[[#This Row],[ديسمبر]]/تكلفةالمبيعات[[#Totals],[ديسمبر]],"-") -> 9% | AD11: =SUM(تكلفةالمبيعات[[#This Row],[النسبة المئوية في يناير]:[النسبة المئوية في ديسمبر]]) -> 162%
B12: إجمالي تكلفة المبيعات | D12: =SUBTOTAL(109,تكلفةالمبيعات[يناير]) -> ر.س.‏ 265 | E12: =SUBTOTAL(109,تكلفةالمبيعات[فبراير]) -> ر.س.‏ 356 | F12: =SUBTOTAL(109,تكلفةالمبيعات[مارس]) -> ر.س.‏ 315 | G12: =SUBTOTAL(109,تكلفةالمبيعات[أبريل]) -> ر.س.‏ 241 | H12: =SUBTOTAL(109,تكلفةالمبيعات[مايو]) -> ر.س.‏ 399 | I12: =SUBTOTAL(109,تكلفةالمبيعات[يونيو]) -> ر.س.‏ 312 | J12: =SUBTOTAL(109,تكلفةالمبيعات[يوليو]) -> ر.س.‏ 299 | K12: =SUBTOTAL(109,تكلفةالمبيعات[أغسطس]) -> ر.س.‏ 226 | L12: =SUBTOTAL(109,تكلفةالمبيعات[سبتمبر]) -> ر.س.‏ 414 | M12: =SUBTOTAL(109,تكلفةالمبيعات[أكتوبر]) -> ر.س.‏ 274 | N12: =SUBTOTAL(109,تكلفةالمبيعات[نوفمبر]) -> ر.س.‏ 264 | O12: =SUBTOTAL(109,تكلفةالمبيعات[ديسمبر]) -> ر.س.‏ 453 | P12: =SUBTOTAL(109,تكلفةالمبيعات[سنوياً]) -> ر.س.‏ 3,818 | Q12: =SUBTOTAL(109,تكلفةالمبيعات[النسبة المئوية للفهرس]) -> 100% | R12: =SUBTOTAL(109,تكلفةالمبيعات[النسبة المئوية في يناير]) -> 100% | S12: =SUBTOTAL(109,تكلفةالمبيعات[النسبة المئوية في فبراير]) -> 100% | T12: =SUBTOTAL(109,تكلفةالمبيعات[النسبة المئوية في مارس]) -> 100% | U12: =SUBTOTAL(109,تكلفةالمبيعات[النسبة المئوية في أبريل]) -> 100% | V12: =SUBTOTAL(109,تكلفةالمبيعات[النسبة المئوية في مايو]) -> 100% | W12: =SUBTOTAL(109,تكلفةالمبيعات[النسبة المئوية في يونيو]) -> 100% | X12: =SUBTOTAL(109,تكلفةالمبيعات[النسبة المئوية في يوليو]) -> 100% | Y12: =SUBTOTAL(109,تكلفةالمبيعات[النسبة المئوية في أغسطس]) -> 100% | Z12: =SUBTOTAL(109,تكلفةالمبيعات[النسبة المئوية في سبتمبر]) -> 100% | AA12: =SUBTOTAL(109,تكلفةالمبيعات[النسبة المئوية في أكتوبر]) -> 100% | AB12: =SUBTOTAL(109,تكلفةالمبيعات[النسبة المئوية في نوفمبر]) -> 100% | AC12: =SUBTOTAL(109,تكلفةالمبيعات[النسبة المئوية في ديسمبر]) -> 100% | AD12: =SUBTOTAL(109,تكلفةالمبيعات[النسبة المئوية في السنة]) -> 1200%
B14: إجمالي الربح | D14: =الإيرادات[[#Totals],[يناير]]-تكلفةالمبيعات[[#Totals],[يناير]] -> ر.س.‏ 359 | E14: =الإيرادات[[#Totals],[فبراير]]-تكلفةالمبيعات[[#Totals],[فبراير]] -> ر.س.‏ 380 | F14: =الإيرادات[[#Totals],[مارس]]-تكلفةالمبيعات[[#Totals],[مارس]] -> ر.س.‏ 505 | G14: =الإيرادات[[#Totals],[أبريل]]-تكلفةالمبيعات[[#Totals],[أبريل]] -> ر.س.‏ 370 | H14: =الإيرادات[[#Totals],[مايو]]-تكلفةالمبيعات[[#Totals],[مايو]] -> ر.س.‏ 413 | I14: =الإيرادات[[#Totals],[يونيو]]-تكلفةالمبيعات[[#Totals],[يونيو]] -> ر.س.‏ 266 | J14: =الإيرادات[[#Totals],[يوليو]]-تكلفةالمبيعات[[#Totals],[يوليو]] -> ر.س.‏ 298 | K14: =الإيرادات[[#Totals],[أغسطس]]-تكلفةالمبيعات[[#Totals],[أغسطس]] -> ر.س.‏ 449 | L14: =الإيرادات[[#Totals],[سبتمبر]]-تكلفةالمبيعات[[#Totals],[سبتمبر]] -> ر.س.‏ 330 | M14: =الإيرادات[[#Totals],[أكتوبر]]-تكلفةالمبيعات[[#Totals],[أكتوبر]] -> ر.س.‏ 407 | N14: =الإيرادات[[#Totals],[نوفمبر]]-تكلفةالمبيعات[[#Totals],[نوفمبر]] -> ر.س.‏ 475 | O14: =الإيرادات[[#Totals],[ديسمبر]]-تكلفةالمبيعات[[#Totals],[ديسمبر]] -> ر.س.‏ 590 | P14: =الإيرادات[[#Totals],[سنوياً]]-تكلفةالمبيعات[[#Totals],[سنوياً]] -> ر.س.‏ 4,842 | R14: =D14/$P$14 -> 7% | S14: 8% | T14: 10% | U14: 8% | V14: 9% | W14: 5% | X14: 6% | Y14: 9% | Z14: 7% | AA14: 8% | AB14: 10% | AC14: 12% | AD14: 100%

Sheet المصاريف
B1: =Projection_Period_Title -> الشهر الثاني عشر | AD1: =اسم_الشركة -> اسم الشركة
B2: ='الإيرادات (المبيعات)'!$B$2 -> عرض الأرباح والخسائر | AA2: السنة المالية: | AC2: =FYMonthStart -> يناير | AD2: =FYStartYear -> 2017
D3: =UPPER(TEXT(DATE(FYStartYear,FYMonthNo,1),"mmm/yy")) -> يناير/17 | E3: =UPPER(TEXT(DATE(FYStartYear,FYMonthNo+1,1),"mmm/yy")) -> فبراير/17 | F3: =UPPER(TEXT(DATE(FYStartYear,FYMonthNo+2,1),"mmm/yy")) -> مارس/17 | G3: =UPPER(TEXT(DATE(FYStartYear,FYMonthNo+3,1),"mmm/yy")) -> أبريل/17 | H3: =UPPER(TEXT(DATE(FYStartYear,FYMonthNo+4,1),"mmm/yy")) -> مايو/17 | I3: =UPPER(TEXT(DATE(FYStartYear,FYMonthNo+5,1),"mmm/yy")) -> يونيو/17 | J3: =UPPER(TEXT(DATE(FYStartYear,FYMonthNo+6,1),"mmm/yy")) -> يوليو/17 | K3: =UPPER(TEXT(DATE(FYStartYear,FYMonthNo+7,1),"mmm/yy")) -> أغسطس/17 | L3: =UPPER(TEXT(DATE(FYStartYear,FYMonthNo+8,1),"mmm/yy")) -> سبتمبر/17 | M3: =UPPER(TEXT(DATE(FYStartYear,FYMonthNo+9,1),"mmm/yy")) -> أكتوبر/17 | N3: =UPPER(TEXT(DATE(FYStartYear,FYMonthNo+10,1),"mmm/yy")) -> نوفمبر/17 | O3: =UPPER(TEXT(DATE(FYStartYear,FYMonthNo+11,1),"mmm/yy")) -> ديسمبر/17 | P3: سنوياً | Q3: النسبة المئوية للفهرس | R3: =LEFT(D3,3)&" %" -> ينا % | S3: =LEFT(E3,3)&" %" -> فبر % | T3: مار % | U3: أبر % | V3: ماي % | W3: يون % | X3: يول % | Y3: أغس % | Z3: سبت % | AA3: أكت % | AB3: نوف % | AC3: ديس % | AD3: النسبة المئوية في السنة
B4: المصاريف | C4: الاتجاه | D4: العمود 1 | E4: فبراير | F4: مارس | G4: أبريل | H4: مايو | I4: يونيو | J4: يوليو | K4: أغسطس | L4: سبتمبر | M4: أكتوبر | N4: نوفمبر | O4: ديسمبر | P4: سنوياً | Q4: النسبة المئوية للفهرس | R4: النسبة المئوية في يناير | S4: النسبة المئوية في فبراير | T4: النسبة المئوية في مارس | U4: النسبة المئوية في أبريل | V4: النسبة المئوية في مايو | W4: النسبة المئوية في يونيو | X4: النسبة المئوية في يوليو | Y4: النسبة المئوية في أغسطس | Z4: النسبة المئوية في سبتمبر | AA4: النسبة المئوية في أكتوبر | AB4: النسبة المئوية في نوفمبر | AC4: النسبة المئوية في ديسمبر | AD4: النسبة المئوية في السنة
B5: مصاريف المرتب | D5: ر.س.‏ 10 | E5: ر.س.‏ 18 | F5: ر.س.‏ 13 | G5: ر.س.‏ 8 | H5: ر.س.‏ 22 | I5: ر.س.‏ 18 | J5: ر.س.‏ 8 | K5: ر.س.‏ 17 | L5: ر.س.‏ 20 | M5: ر.س.‏ 8 | N5: ر.س.‏ 4 | O5: ر.س.‏ 12 | P5: =SUM(tblExpenses[[#This Row],[العمود 1]:[ديسمبر]]) -> ر.س.‏ 158 | Q5: 12% | R5: =tblExpenses[[#This Row],[العمود 1]]/tblExpenses[[#Totals],[العمود 1]] -> 4% | S5: =tblExpenses[[#This Row],[فبراير]]/tblExpenses[[#Totals],[فبراير]] -> 9% | T5: =tblExpenses[[#This Row],[مارس]]/tblExpenses[[#Totals],[مارس]] -> 5% | U5: =tblExpenses[[#This Row],[أبريل]]/tblExpenses[[#Totals],[أبريل]] -> 3% | V5: =tblExpenses[[#This Row],[مايو]]/tblExpenses[[#Totals],[مايو]] -> 9% | W5: =tblExpenses[[#This Row],[يونيو]]/tblExpenses[[#Totals],[يونيو]] -> 7% | X5: =tblExpenses[[#This Row],[يوليو]]/tblExpenses[[#Totals],[يوليو]] -> 3% | Y5: =tblExpenses[[#This Row],[أغسطس]]/tblExpenses[[#Totals],[أغسطس]] -> 7% | Z5: =tblExpenses[[#This Row],[سبتمبر]]/tblExpenses[[#Totals],[سبتمبر]] -> 9% | AA5: =tblExpenses[[#This Row],[أكتوبر]]/tblExpenses[[#Totals],[أكتوبر]] -> 3% | AB5: =tblExpenses[[#This Row],[نوفمبر]]/tblExpenses[[#Totals],[نوفمبر]] -> 1% | AC5: =tblExpenses[[#This Row],[ديسمبر]]/tblExpenses[[#Totals],[ديسمبر]] -> 5% | AD5: =tblExpenses[[#This Row],[سنوياً]]/tblExpenses[[#Totals],[سنوياً]] -> 5%
B6: مصاريف كشف الرواتب | D6: ر.س.‏ 23 | E6: ر.س.‏ 11 | F6: ر.س.‏ 7 | G6: ر.س.‏ 14 | H6: ر.س.‏ 12 | I6: ر.س.‏ 19 | J6: ر.س.‏ 19 | K6: ر.س.‏ 4 | L6: ر.س.‏ 7 | M6: ر.س.‏ 13 | N6: ر.س.‏ 25 | O6: ر.س.‏ 5 | P6: =SUM(tblExpenses[[#This Row],[العمود 1]:[ديسمبر]]) -> ر.س.‏ 159 | Q6: 9% | R6: =tblExpenses[[#This Row],[العمود 1]]/tblExpenses[[#Totals],[العمود 1]] -> 10% | S6: =tblExpenses[[#This Row],[فبراير]]/tblExpenses[[#Totals],[فبراير]] -> 5% | T6: =tblExpenses[[#This Row],[مارس]]/tblExpenses[[#Totals],[مارس]] -> 3% | U6: =tblExpenses[[#This Row],[أبريل]]/tblExpenses[[#Totals],[أبريل]] -> 5% | V6: =tblExpenses[[#This Row],[مايو]]/tblExpenses[[#Totals],[مايو]] -> 5% | W6: =tblExpenses[[#This Row],[يونيو]]/tblExpenses[[#Totals],[يونيو]] -> 7% | X6: =tblExpenses[[#This Row],[يوليو]]/tblExpenses[[#Totals],[يوليو]] -> 7% | Y6: =tblExpenses[[#This Row],[أغسطس]]/tblExpenses[[#Totals],[أغسطس]] -> 2% | Z6: =tblExpenses[[#This Row],[سبتمبر]]/tblExpenses[[#Totals],[سبتمبر]] -> 3% | AA6: =tblExpenses[[#This Row],[أكتوبر]]/tblExpenses[[#Totals],[أكتوبر]] -> 5% | AB6: =tblExpenses[[#This Row],[نوفمبر]]/tblExpenses[[#Totals],[نوفمبر]] -> 8% | AC6: =tblExpenses[[#This Row],[ديسمبر]]/tblExpenses[[#Totals],[ديسمبر]] -> 2% | AD6: =tblExpenses[[#This Row],[سنوياً]]/tblExpenses[[#Totals],[سنوياً]] -> 5%
B7: الخدمات الخارجية | D7: ر.س.‏ 23 | E7: ر.س.‏ 20 | F7: ر.س.‏ 3 | G7: ر.س.‏ 16 | H7: ر.س.‏ 10 | I7: ر.س.‏ 5 | J7: ر.س.‏ 20 | K7: ر.س.‏ 7 | L7: ر.س.‏ 4 | M7: ر.س.‏ 22 | N7: ر.س.‏ 13 | O7: ر.س.‏ 14 | P7: =SUM(tblExpenses[[#This Row],[العمود 1]:[ديسمبر]]) -> ر.س.‏ 157 | Q7: 2% | R7: =tblExpenses[[#This Row],[العمود 1]]/tblExpenses[[#Totals],[العمود 1]] -> 10% | S7: =tblExpenses[[#This Row],[فبراير]]/tblExpenses[[#Totals],[فبراير]] -> 10% | T7: =tblExpenses[[#This Row],[مارس]]/tblExpenses[[#Totals],[مارس]] -> 1% | U7: =tblExpenses[[#This Row],[أبريل]]/tblExpenses[[#Totals],[أبريل]] -> 6% | V7: =tblExpenses[[#This Row],[مايو]]/tblExpenses[[#Totals],[مايو]] -> 4% | W7: =tblExpenses[[#This Row],[يونيو]]/tblExpenses[[#Totals],[يونيو]] -> 2% | X7: =tblExpenses[[#This Row],[يوليو]]/tblExpenses[[#Totals],[يوليو]] -> 8% | Y7: =tblExpenses[[#This Row],[أغسطس]]/tblExpenses[[#Totals],[أغسطس]] -> 3% | Z7: =tblExpenses[[#This Row],[سبتمبر]]/tblExpenses[[#Totals],[سبتمبر]] -> 2% | AA7: =tblExpenses[[#This Row],[أكتوبر]]/tblExpenses[[#Totals],[أكتوبر]] -> 8% | AB7: =tblExpenses[[#This Row],[نوفمبر]]/tblExpenses[[#Totals],[نوفمبر]] -> 4% | AC7: =tblExpenses[[#This Row],[ديسمبر]]/tblExpenses[[#Totals],[ديسمبر]] -> 6% | AD7: =tblExpenses[[#This Row],[سنوياً]]/tblExpenses[[#Totals],[سنوياً]] -> 5%
B8: اللوازم (المكتب والتشغيل) | D8: ر.س.‏ 19 | E8: ر.س.‏ 4 | F8: ر.س.‏ 7 | G8: ر.س.‏ 14 | H8: ر.س.‏ 22 | I8: ر.س.‏ 10 | J8: ر.س.‏ 22 | K8: ر.س.‏ 5 | L8: ر.س.‏ 4 | M8: ر.س.‏ 12 | N8: ر.س.‏ 18 | O8: ر.س.‏ 24 | P8: =SUM(tblExpenses[[#This Row],[العمود 1]:[ديسمبر]]) -> ر.س.‏ 161 | Q8: 8% | R8: =tblExpenses[[#This Row],[العمود 1]]/tblExpenses[[#Totals],[العمود 1]] -> 8% | S8: =tblExpenses[[#This Row],[فبراير]]/tblExpenses[[#Totals],[فبراير]] -> 2% | T8: =tblExpenses[[#This Row],[مارس]]/tblExpenses[[#Totals],[مارس]] -> 3% | U8: =tblExpenses[[#This Row],[أبريل]]/tblExpenses[[#Totals],[أبريل]] -> 5% | V8: =tblExpenses[[#This Row],[مايو]]/tblExpenses[[#Totals],[مايو]] -> 9% | W8: =tblExpenses[[#This Row],[يونيو]]/tblExpenses[[#Totals],[يونيو]] -> 4% | X8: =tblExpenses[[#This Row],[يوليو]]/tblExpenses[[#Totals],[يوليو]] -> 8% | Y8: =tblExpenses[[#This Row],[أغسطس]]/tblExpenses[[#Totals],[أغسطس]] -> 2% | Z8: =tblExpenses[[#This Row],[سبتمبر]]/tblExpenses[[#Totals],[سبتمبر]] -> 2% | AA8: =tblExpenses[[#This Row],[أكتوبر]]/tblExpenses[[#Totals],[أكتوبر]] -> 5% | AB8: =tblExpenses[[#This Row],[نوفمبر]]/tblExpenses[[#Totals],[نوفمبر]] -> 6% | AC8: =tblExpenses[[#This Row],[ديسمبر]]/tblExpenses[[#Totals],[ديسمبر]] -> 10% | AD8: =tblExpenses[[#This Row],[سنوياً]]/tblExpenses[[#Totals],[سنوياً]] -> 5%
B9: الإصلاحات والصيانة | D9: ر.س.‏ 11 | E9: ر.س.‏ 11 | F9: ر.س.‏ 17 | G9: ر.س.‏ 12 | H9: ر.س.‏ 2 | I9: ر.س.‏ 14 | J9: ر.س.‏ 12 | K9: ر.س.‏ 10 | L9: ر.س.‏ 18 | M9: ر.س.‏ 11 | N9: ر.س.‏ 23 | O9: ر.س.‏ 11 | P9: =SUM(tblExpenses[[#This Row],[العمود 1]:[ديسمبر]]) -> ر.س.‏ 152 | Q9: 3% | R9: =tblExpenses[[#This Row],[العمود 1]]/tblExpenses[[#Totals],[العمود 1]] -> 5% | S9: =tblExpenses[[#This Row],[فبراير]]/tblExpenses[[#Totals],[فبراير]] -> 5% | T9: =tblExpenses[[#This Row],[مارس]]/tblExpenses[[#Totals],[مارس]] -> 7% | U9: =tblExpenses[[#This Row],[أبريل]]/tblExpenses[[#Totals],[أبريل]] -> 5% | V9: =tblExpenses[[#This Row],[مايو]]/tblExpenses[[#Totals],[مايو]] -> 1% | W9: =tblExpenses[[#This Row],[يونيو]]/tblExpenses[[#Totals],[يونيو]] -> 5% | X9: =tblExpenses[[#This Row],[يوليو]]/tblExpenses[[#Totals],[يوليو]] -> 5% | Y9: =tblExpenses[[#This Row],[أغسطس]]/tblExpenses[[#Totals],[أغسطس]] -> 4% | Z9: =tblExpenses[[#This Row],[سبتمبر]]/tblExpenses[[#Totals],[سبتمبر]] -> 8% | AA9: =tblExpenses[[#This Row],[أكتوبر]]/tblExpenses[[#Totals],[أكتوبر]] -> 4% | AB9: =tblExpenses[[#This Row],[نوفمبر]]/tblExpenses[[#Totals],[نوفمبر]] -> 8% | AC9: =tblExpenses[[#This Row],[ديسمبر]]/tblExpenses[[#Totals],[ديسمبر]] -> 5% | AD9: =tblExpenses[[#This Row],[سنوياً]]/tblExpenses[[#Totals],[سنوياً]] -> 5%
B10: الإعلانات | D10: ر.س.‏ 2 | E10: ر.س.‏ 16 | F10: ر.س.‏ 6 | G10: ر.س.‏ 13 | H10: ر.س.‏ 11 | I10: ر.س.‏ 22 | J10: ر.س.‏ 21 | K10: ر.س.‏ 3 | L10: ر.س.‏ 12 | M10: ر.س.‏ 7 | N10: ر.س.‏ 17 | O10: ر.س.‏ 20 | P10: =SUM(tblExpenses[[#This Row],[العمود 1]:[ديسمبر]]) -> ر.س.‏ 150 | Q10: 15% | R10: =tblExpenses[[#This Row],[العمود 1]]/tblExpenses[[#Totals],[العمود 1]] -> 1% | S10: =tblExpenses[[#This Row],[فبراير]]/tblExpenses[[#Totals],[فبراير]] -> 8% | T10: =tblExpenses[[#This Row],[مارس]]/tblExpenses[[#Totals],[مارس]] -> 2% | U10: =tblExpenses[[#This Row],[أبريل]]/tblExpenses[[#Totals],[أبريل]] -> 5% | V10: =tblExpenses[[#This Row],[مايو]]/tblExpenses[[#Totals],[مايو]] -> 4% | W10: =tblExpenses[[#This Row],[يونيو]]/tblExpenses[[#Totals],[يونيو]] -> 8% | X10: =tblExpenses[[#This Row],[يوليو]]/tblExpenses[[#Totals],[يوليو]] -> 8% | Y10: =tblExpenses[[#This Row],[أغسطس]]/tblExpenses[[#Totals],[أغسطس]] -> 1% | Z10: =tblExpenses[[#This Row],[سبتمبر]]/tblExpenses[[#Totals],[سبتمبر]] -> 5% | AA10: =tblExpenses[[#This Row],[أكتوبر]]/tblExpenses[[#Totals],[أكتوبر]] -> 3% | AB10: =tblExpenses[[#This Row],[نوفمبر]]/tblExpenses[[#Totals],[نوفمبر]] -> 6% | AC10: =tblExpenses[[#This Row],[ديسمبر]]/tblExpenses[[#Totals],[ديسمبر]] -> 9% | AD10: =tblExpenses[[#This Row],[سنوياً]]/tblExpenses[[#Totals],[سنوياً]] -> 5%
B11: السيارة والتسليم والسفر | D11: ر.س.‏ 8 | E11: ر.س.‏ 17 | F11: ر.س.‏ 11 | G11: ر.س.‏ 11 | H11: ر.س.‏ 21 | I11: ر.س.‏ 9 | J11: ر.س.‏ 20 | K11: ر.س.‏ 3 | L11: ر.س.‏ 14 | M11: ر.س.‏ 22 | N11: ر.س.‏ 16 | O11: ر.س.‏ 12 | P11: =SUM(tblExpenses[[#This Row],[العمود 1]:[ديسمبر]]) -> ر.س.‏ 164 | Q11: 12% | R11: =tblExpenses[[#This Row],[العمود 1]]/tblExpenses[[#Totals],[العمود 1]] -> 3% | S11: =tblExpenses[[#This Row],[فبراير]]/tblExpenses[[#Totals],[فبراير]] -> 8% | T11: =tblExpenses[[#This Row],[مارس]]/tblExpenses[[#Totals],[مارس]] -> 4% | U11: =tblExpenses[[#This Row],[أبريل]]/tblExpenses[[#Totals],[أبريل]] -> 4% | V11: =tblExpenses[[#This Row],[مايو]]/tblExpenses[[#Totals],[مايو]] -> 8% | W11: =tblExpenses[[#This Row],[يونيو]]/tblExpenses[[#Totals],[يونيو]] -> 3% | X11: =tblExpenses[[#This Row],[يوليو]]/tblExpenses[[#Totals],[يوليو]] -> 8% | Y11: =tblExpenses[[#This Row],[أغسطس]]/tblExpenses[[#Totals],[أغسطس]] -> 1% | Z11: =tblExpenses[[#This Row],[سبتمبر]]/tblExpenses[[#Totals],[سبتمبر]] -> 6% | AA11: =tblExpenses[[#This Row],[أكتوبر]]/tblExpenses[[#Totals],[أكتوبر]] -> 8% | AB11: =tblExpenses[[#This Row],[نوفمبر]]/tblExpenses[[#Totals],[نوفمبر]] -> 5% | AC11: =tblExpenses[[#This Row],[ديسمبر]]/tblExpenses[[#Totals],[ديسمبر]] -> 5% | AD11: =tblExpenses[[#This Row],[سنوياً]]/tblExpenses[[#Totals],[سنوياً]] -> 5%
B12: المحاسبة والشؤون القانونية | D12: ر.س.‏ 5 | E12: ر.س.‏ 13 | F12: ر.س.‏ 6 | G12: ر.س.‏ 15 | H12: ر.س.‏ 19 | I12: ر.س.‏ 10 | J12: ر.س.‏ 12 | K12: ر.س.‏ 9 | L12: ر.س.‏ 15 | M12: ر.س.‏ 16 | N12: ر.س.‏ 4 | O12: ر.س.‏ 9 | P12: =SUM(tblExpenses[[#This Row],[العمود 1]:[ديسمبر]]) -> ر.س.‏ 133 | Q12: 9% | R12: =tblExpenses[[#This Row],[العمود 1]]/tblExpenses[[#Totals],[العمود 1]] -> 2% | S12: =tblExpenses[[#This Row],[فبراير]]/tblExpenses[[#Totals],[فبراير]] -> 6% | T12: =tblExpenses[[#This Row],[مارس]]/tblExpenses[[#Totals],[مارس]] -> 2% | U12: =tblExpenses[[#This Row],[أبريل]]/tblExpenses[[#Totals],[أبريل]] -> 6% | V12: =tblExpenses[[#This Row],[مايو]]/tblExpenses[[#Totals],[مايو]] -> 7% | W12: =tblExpenses[[#This Row],[يونيو]]/tblExpenses[[#Totals],[يونيو]] -> 4% | X12: =tblExpenses[[#This Row],[يوليو]]/tblExpenses[[#Totals],[يوليو]] -> 5% | Y12: =tblExpenses[[#This Row],[أغسطس]]/tblExpenses[[#Totals],[أغسطس]] -> 4% | Z12: =tblExpenses[[#This Row],[سبتمبر]]/tblExpenses[[#Totals],[سبتمبر]] -> 7% | AA12: =tblExpenses[[#This Row],[أكتوبر]]/tblExpenses[[#Totals],[أكتوبر]] -> 6% | AB12: =tblExpenses[[#This Row],[نوفمبر]]/tblExpenses[[#Totals],[نوفمبر]] -> 1% | AC12: =tblExpenses[[#This Row],[ديسمبر]]/tblExpenses[[#Totals],[ديسمبر]] -> 4% | AD12: =tblExpenses[[#This Row],[سنوياً]]/tblExpenses[[#Totals],[سنوياً]] -> 4%
B13: الإيجار | D13: ر.س.‏ 8 | E13: ر.س.‏ 4 | F13: ر.س.‏ 23 | G13: ر.س.‏ 25 | H13: ر.س.‏ 10 | I13: ر.س.‏ 24 | J13: ر.س.‏ 22 | K13: ر.س.‏ 5 | L13: ر.س.‏ 12 | M13: ر.س.‏ 24 | N13: ر.س.‏ 24 | O13: ر.س.‏ 12 | P13: =SUM(tblExpenses[[#This Row],[العمود 1]:[ديسمبر]]) -> ر.س.‏ 193 | Q13: 1% | R13: =tblExpenses[[#This Row],[العمود 1]]/tblExpenses[[#Totals],[العمود 1]] -> 3% | S13: =tblExpenses[[#This Row],[فبراير]]/tblExpenses[[#Totals],[فبراير]] -> 2% | T13: =tblExpenses[[#This Row],[مارس]]/tblExpenses[[#Totals],[مارس]] -> 9% | U13: =tblExpenses[[#This Row],[أبريل]]/tblExpenses[[#Totals],[أبريل]] -> 10% | V13: =tblExpenses[[#This Row],[مايو]]/tblExpenses[[#Totals],[مايو]] -> 4% | W13: =tblExpenses[[#This Row],[يونيو]]/tblExpenses[[#Totals],[يونيو]] -> 9% | X13: =tblExpenses[[#This Row],[يوليو]]/tblExpenses[[#Totals],[يوليو]] -> 8% | Y13: =tblExpenses[[#This Row],[أغسطس]]/tblExpenses[[#Totals],[أغسطس]] -> 2% | Z13: =tblExpenses[[#This Row],[سبتمبر]]/tblExpenses[[#Totals],[سبتمبر]] -> 5% | AA13: =tblExpenses[[#This Row],[أكتوبر]]/tblExpenses[[#Totals],[أكتوبر]] -> 9% | AB13: =tblExpenses[[#This Row],[نوفمبر]]/tblExpenses[[#Totals],[نوفمبر]] -> 8% | AC13: =tblExpenses[[#This Row],[ديسمبر]]/tblExpenses[[#Totals],[ديسمبر]] -> 5% | AD13: =tblExpenses[[#This Row],[سنوياً]]/tblExpenses[[#Totals],[سنوياً]] -> 6%
B14: الهاتف | D14: ر.س.‏ 25 | E14: ر.س.‏ 2 | F14: ر.س.‏ 12 | G14: ر.س.‏ 25 | H14: ر.س.‏ 10 | I14: ر.س.‏ 24 | J14: ر.س.‏ 3 | K14: ر.س.‏ 20 | L14: ر.س.‏ 3 | M14: ر.س.‏ 9 | N14: ر.س.‏ 20 | O14: ر.س.‏ 18 | P14: =SUM(tblExpenses[[#This Row],[العمود 1]:[ديسمبر]]) -> ر.س.‏ 171 | Q14: 1% | R14: =tblExpenses[[#This Row],[العمود 1]]/tblExpenses[[#Totals],[العمود 1]] -> 11% | S14: =tblExpenses[[#This Row],[فبراير]]/tblExpenses[[#Totals],[فبراير]] -> 1% | T14: =tblExpenses[[#This Row],[مارس]]/tblExpenses[[#Totals],[مارس]] -> 5% | U14: =tblExpenses[[#This Row],[أبريل]]/tblExpenses[[#Totals],[أبريل]] -> 10% | V14: =tblExpenses[[#This Row],[مايو]]/tblExpenses[[#Totals],[مايو]] -> 4% | W14: =tblExpenses[[#This Row],[يونيو]]/tblExpenses[[#Totals],[يونيو]] -> 9% | X14: =tblExpenses[[#This Row],[يوليو]]/tblExpenses[[#Totals],[يوليو]] -> 1% | Y14: =tblExpenses[[#This Row],[أغسطس]]/tblExpenses[[#Totals],[أغسطس]] -> 9% | Z14: =tblExpenses[[#This Row],[سبتمبر]]/tblExpenses[[#Totals],[سبتمبر]] -> 1% | AA14: =tblExpenses[[#This Row],[أكتوبر]]/tblExpenses[[#Totals],[أكتوبر]] -> 3% | AB14: =tblExpenses[[#This Row],[نوفمبر]]/tblExpenses[[#Totals],[نوفمبر]] -> 7% | AC14: =tblExpenses[[#This Row],[ديسمبر]]/tblExpenses[[#Totals],[ديسمبر]] -> 8% | AD14: =tblExpenses[[#This Row],[سنوياً]]/tblExpenses[[#Totals],[سنوياً]] -> 6%
B15: المرافق | D15: ر.س.‏ 16 | E15: ر.س.‏ 19 | F15: ر.س.‏ 9 | G15: ر.س.‏ 16 | H15: ر.س.‏ 13 | I15: ر.س.‏ 2 | J15: ر.س.‏ 4 | K15: ر.س.‏ 24 | L15: ر.س.‏ 16 | M15: ر.س.‏ 22 | N15: ر.س.‏ 7 | O15: ر.س.‏ 18 | P15: =SUM(tblExpenses[[#This Row],[العمود 1]:[ديسمبر]]) -> ر.س.‏ 166 | Q15: 1% | R15: =tblExpenses[[#This Row],[العمود 1]]/tblExpenses[[#Totals],[العمود 1]] -> 7% | S15: =tblExpenses[[#This Row],[فبراير]]/tblExpenses[[#Totals],[فبراير]] -> 9% | T15: =tblExpenses[[#This Row],[مارس]]/tblExpenses[[#Totals],[مارس]] -> 4% | U15: =tblExpenses[[#This Row],[أبريل]]/tblExpenses[[#Totals],[أبريل]] -> 6% | V15: =tblExpenses[[#This Row],[مايو]]/tblExpenses[[#Totals],[مايو]] -> 5% | W15: =tblExpenses[[#This Row],[يونيو]]/tblExpenses[[#Totals],[يونيو]] -> 1% | X15: =tblExpenses[[#This Row],[يوليو]]/tblExpenses[[#Totals],[يوليو]] -> 2% | Y15: =tblExpenses[[#This Row],[أغسطس]]/tblExpenses[[#Totals],[أغسطس]] -> 10% | Z15: =tblExpenses[[#This Row],[سبتمبر]]/tblExpenses[[#Totals],[سبتمبر]] -> 7% | AA15: =tblExpenses[[#This Row],[أكتوبر]]/tblExpenses[[#Totals],[أكتوبر]] -> 8% | AB15: =tblExpenses[[#This Row],[نوفمبر]]/tblExpenses[[#Totals],[نوفمبر]] -> 2% | AC15: =tblExpenses[[#This Row],[ديسمبر]]/tblExpenses[[#Totals],[ديسمبر]] -> 8% | AD15: =tblExpenses[[#This Row],[سنوياً]]/tblExpenses[[#Totals],[سنوياً]] -> 6%
B16: التأمين | D16: ر.س.‏ 12 | E16: ر.س.‏ 9 | F16: ر.س.‏ 16 | G16: ر.س.‏ 19 | H16: ر.س.‏ 25 | I16: ر.س.‏ 17 | J16: ر.س.‏ 20 | K16: ر.س.‏ 14 | L16: ر.س.‏ 5 | M16: ر.س.‏ 14 | N16: ر.س.‏ 5 | O16: ر.س.‏ 2 | P16: =SUM(tblExpenses[[#This Row],[العمود 1]:[ديسمبر]]) -> ر.س.‏ 158 | Q16: 1% | R16: =tblExpenses[[#This Row],[العمود 1]]/tblExpenses[[#Totals],[العمود 1]] -> 5% | S16: =tblExpenses[[#This Row],[فبراير]]/tblExpenses[[#Totals],[فبراير]] -> 4% | T16: =tblExpenses[[#This Row],[مارس]]/tblExpenses[[#Totals],[مارس]] -> 6% | U16: =tblExpenses[[#This Row],[أبريل]]/tblExpenses[[#Totals],[أبريل]] -> 7% | V16: =tblExpenses[[#This Row],[مايو]]/tblExpenses[[#Totals],[مايو]] -> 10% | W16: =tblExpenses[[#This Row],[يونيو]]/tblExpenses[[#Totals],[يونيو]] -> 6% | X16: =tblExpenses[[#This Row],[يوليو]]/tblExpenses[[#Totals],[يوليو]] -> 8% | Y16: =tblExpenses[[#This Row],[أغسطس]]/tblExpenses[[#Totals],[أغسطس]] -> 6% | Z16: =tblExpenses[[#This Row],[سبتمبر]]/tblExpenses[[#Totals],[سبتمبر]] -> 2% | AA16: =tblExpenses[[#This Row],[أكتوبر]]/tblExpenses[[#Totals],[أكتوبر]] -> 5% | AB16: =tblExpenses[[#This Row],[نوفمبر]]/tblExpenses[[#Totals],[نوفمبر]] -> 2% | AC16: =tblExpenses[[#This Row],[ديسمبر]]/tblExpenses[[#Totals],[ديسمبر]] -> 1% | AD16: =tblExpenses[[#This Row],[سنوياً]]/tblExpenses[[#Totals],[سنوياً]] -> 5%
B17: الضرائب (العقارية، وغيرها) | D17: ر.س.‏ 16 | E17: ر.س.‏ 13 | F17: ر.س.‏ 10 | G17: ر.س.‏ 7 | H17: ر.س.‏ 13 | I17: ر.س.‏ 3 | J17: ر.س.‏ 13 | K17: ر.س.‏ 17 | L17: ر.س.‏ 9 | M17: ر.س.‏ 4 | N17: ر.س.‏ 22 | O17: ر.س.‏ 18 | P17: =SUM(tblExpenses[[#This Row],[العمود 1]:[ديسمبر]]) -> ر.س.‏ 145 | Q17: 14% | R17: =tblExpenses[[#This Row],[العمود 1]]/tblExpenses[[#Totals],[العمود 1]] -> 7% | S17: =tblExpenses[[#This Row],[فبراير]]/tblExpenses[[#Totals],[فبراير]] -> 6% | T17: =tblExpenses[[#This Row],[مارس]]/tblExpenses[[#Totals],[مارس]] -> 4% | U17: =tblExpenses[[#This Row],[أبريل]]/tblExpenses[[#Totals],[أبريل]] -> 3% | V17: =tblExpenses[[#This Row],[مايو]]/tblExpenses[[#Totals],[مايو]] -> 5% | W17: =tblExpenses[[#This Row],[يونيو]]/tblExpenses[[#Totals],[يونيو]] -> 1% | X17: =tblExpenses[[#This Row],[يوليو]]/tblExpenses[[#Totals],[يوليو]] -> 5% | Y17: =tblExpenses[[#This Row],[أغسطس]]/tblExpenses[[#Totals],[أغسطس]] -> 7% | Z17: =tblExpenses[[#This Row],[سبتمبر]]/tblExpenses[[#Totals],[سبتمبر]] -> 4% | AA17: =tblExpenses[[#This Row],[أكتوبر]]/tblExpenses[[#Totals],[أكتوبر]] -> 2% | AB17: =tblExpenses[[#This Row],[نوفمبر]]/tblExpenses[[#Totals],[نوفمبر]] -> 7% | AC17: =tblExpenses[[#This Row],[ديسمبر]]/tblExpenses[[#Totals],[ديسمبر]] -> 8% | AD17: =tblExpenses[[#This Row],[سنوياً]]/tblExpenses[[#Totals],[سنوياً]] -> 5%
B18: الفائدة | D18: ر.س.‏ 3 | E18: ر.س.‏ 2 | F18: ر.س.‏ 19 | G18: ر.س.‏ 21 | H18: ر.س.‏ 13 | I18: ر.س.‏ 9 | J18: ر.س.‏ 7 | K18: ر.س.‏ 13 | L18: ر.س.‏ 3 | M18: ر.س.‏ 6 | N18: ر.س.‏ 10 | O18: ر.س.‏ 13 | P18: =SUM(tblExpenses[[#This Row],[العمود 1]:[ديسمبر]]) -> ر.س.‏ 119 | Q18: 6% | R18: =tblExpenses[[#This Row],[العمود 1]]/tblExpenses[[#Totals],[العمود 1]] -> 1% | S18: =tblExpenses[[#This Row],[فبراير]]/tblExpenses[[#Totals],[فبراير]] -> 1% | T18: =tblExpenses[[#This Row],[مارس]]/tblExpenses[[#Totals],[مارس]] -> 8% | U18: =tblExpenses[[#This Row],[أبريل]]/tblExpenses[[#Totals],[أبريل]] -> 8% | V18: =tblExpenses[[#This Row],[مايو]]/tblExpenses[[#Totals],[مايو]] -> 5% | W18: =tblExpenses[[#This Row],[يونيو]]/tblExpenses[[#Totals],[يونيو]] -> 3% | X18: =tblExpenses[[#This Row],[يوليو]]/tblExpenses[[#Totals],[يوليو]] -> 3% | Y18: =tblExpenses[[#This Row],[أغسطس]]/tblExpenses[[#Totals],[أغسطس]] -> 6% | Z18: =tblExpenses[[#This Row],[سبتمبر]]/tblExpenses[[#Totals],[سبتمبر]] -> 1% | AA18: =tblExpenses[[#This Row],[أكتوبر]]/tblExpenses[[#Totals],[أكتوبر]] -> 2% | AB18: =tblExpenses[[#This Row],[نوفمبر]]/tblExpenses[[#Totals],[نوفمبر]] -> 3% | AC18: =tblExpenses[[#This Row],[ديسمبر]]/tblExpenses[[#Totals],[ديسمبر]] -> 6% | AD18: =tblExpenses[[#This Row],[سنوياً]]/tblExpenses[[#Totals],[سنوياً]] -> 4%
B19: الإهلاك | D19: ر.س.‏ 8 | E19: ر.س.‏ 7 | F19: ر.س.‏ 6 | G19: ر.س.‏ 7 | H19: ر.س.‏ 7 | I19: ر.س.‏ 6 | J19: ر.س.‏ 15 | K19: ر.س.‏ 23 | L19: ر.س.‏ 21 | M19: ر.س.‏ 16 | N19: ر.س.‏ 19 | O19: ر.س.‏ 7 | P19: =SUM(tblExpenses[[#This Row],[العمود 1]:[ديسمبر]]) -> ر.س.‏ 142 | Q19: 1% | R19: =tblExpenses[[#This Row],[العمود 1]]/tblExpenses[[#Totals],[العمود 1]] -> 3% | S19: =tblExpenses[[#This Row],[فبراير]]/tblExpenses[[#Totals],[فبراير]] -> 3% | T19: =tblExpenses[[#This Row],[مارس]]/tblExpenses[[#Totals],[مارس]] -> 2% | U19: =tblExpenses[[#This Row],[أبريل]]/tblExpenses[[#Totals],[أبريل]] -> 3% | V19: =tblExpenses[[#This Row],[مايو]]/tblExpenses[[#Totals],[مايو]] -> 3% | W19: =tblExpenses[[#This Row],[يونيو]]/tblExpenses[[#Totals],[يونيو]] -> 2% | X19: =tblExpenses[[#This Row],[يوليو]]/tblExpenses[[#Totals],[يوليو]] -> 6% | Y19: =tblExpenses[[#This Row],[أغسطس]]/tblExpenses[[#Totals],[أغسطس]] -> 10% | Z19: =tblExpenses[[#This Row],[سبتمبر]]/tblExpenses[[#Totals],[سبتمبر]] -> 9% | AA19: =tblExpenses[[#This Row],[أكتوبر]]/tblExpenses[[#Totals],[أكتوبر]] -> 6% | AB19: =tblExpenses[[#This Row],[نوفمبر]]/tblExpenses[[#Totals],[نوفمبر]] -> 6% | AC19: =tblExpenses[[#This Row],[ديسمبر]]/tblExpenses[[#Totals],[ديسمبر]] -> 3% | AD19: =tblExpenses[[#This Row],[سنوياً]]/tblExpenses[[#Totals],[سنوياً]] -> 5%
B20: المصاريف الأخرى (حدد) | D20: ر.س.‏ 14 | E20: ر.س.‏ 4 | F20: ر.س.‏ 24 | G20: ر.س.‏ 6 | H20: ر.س.‏ 20 | I20: ر.س.‏ 14 | J20: ر.س.‏ 21 | K20: ر.س.‏ 20 | L20: ر.س.‏ 22 | M20: ر.س.‏ 3 | N20: ر.س.‏ 14 | O20: ر.س.‏ 6 | P20: =SUM(tblExpenses[[#This Row],[العمود 1]:[ديسمبر]]) -> ر.س.‏ 168 | Q20: 1% | R20: =tblExpenses[[#This Row],[العمود 1]]/tblExpenses[[#Totals],[العمود 1]] -> 6% | S20: =tblExpenses[[#This Row],[فبراير]]/tblExpenses[[#Totals],[فبراير]] -> 2% | T20: =tblExpenses[[#This Row],[مارس]]/tblExpenses[[#Totals],[مارس]] -> 10% | U20: =tblExpenses[[#This Row],[أبريل]]/tblExpenses[[#Totals],[أبريل]] -> 2% | V20: =tblExpenses[[#This Row],[مايو]]/tblExpenses[[#Totals],[مايو]] -> 8% | W20: =tblExpenses[[#This Row],[يونيو]]/tblExpenses[[#Totals],[يونيو]] -> 5% | X20: =tblExpenses[[#This Row],[يوليو]]/tblExpenses[[#Totals],[يوليو]] -> 8% | Y20: =tblExpenses[[#This Row],[أغسطس]]/tblExpenses[[#Totals],[أغسطس]] -> 9% | Z20: =tblExpenses[[#This Row],[سبتمبر]]/tblExpenses[[#Totals],[سبتمبر]] -> 10% | AA20: =tblExpenses[[#This Row],[أكتوبر]]/tblExpenses[[#Totals],[أكتوبر]] -> 1% | AB20: =tblExpenses[[#This Row],[نوفمبر]]/tblExpenses[[#Totals],[نوفمبر]] -> 5% | AC20: =tblExpenses[[#This Row],[ديسمبر]]/tblExpenses[[#Totals],[ديسمبر]] -> 3% | AD20: =tblExpenses[[#This Row],[سنوياً]]/tblExpenses[[#Totals],[سنوياً]] -> 6%
B21: المصاريف الأخرى (حدد) | D21: ر.س.‏ 14 | E21: ر.س.‏ 7 | F21: ر.س.‏ 24 | G21: ر.س.‏ 10 | H21: ر.س.‏ 7 | I21: ر.س.‏ 24 | J21: ر.س.‏ 2 | K21: ر.س.‏ 11 | L21: ر.س.‏ 21 | M21: ر.س.‏ 19 | N21: ر.س.‏ 19 | O21: ر.س.‏ 20 | P21: =SUM(tblExpenses[[#This Row],[العمود 1]:[ديسمبر]]) -> ر.س.‏ 178 | Q21: 1% | R21: =tblExpenses[[#This Row],[العمود 1]]/tblExpenses[[#Totals],[العمود 1]] -> 6% | S21: =tblExpenses[[#This Row],[فبراير]]/tblExpenses[[#Totals],[فبراير]] -> 3% | T21: =tblExpenses[[#This Row],[مارس]]/tblExpenses[[#Totals],[مارس]] -> 10% | U21: =tblExpenses[[#This Row],[أبريل]]/tblExpenses[[#Totals],[أبريل]] -> 4% | V21: =tblExpenses[[#This Row],[مايو]]/tblExpenses[[#Totals],[مايو]] -> 3% | W21: =tblExpenses[[#This Row],[يونيو]]/tblExpenses[[#Totals],[يونيو]] -> 9% | X21: =tblExpenses[[#This Row],[يوليو]]/tblExpenses[[#Totals],[يوليو]] -> 1% | Y21: =tblExpenses[[#This Row],[أغسطس]]/tblExpenses[[#Totals],[أغسطس]] -> 5% | Z21: =tblExpenses[[#This Row],[سبتمبر]]/tblExpenses[[#Totals],[سبتمبر]] -> 9% | AA21: =tblExpenses[[#This Row],[أكتوبر]]/tblExpenses[[#Totals],[أكتوبر]] -> 7% | AB21: =tblExpenses[[#This Row],[نوفمبر]]/tblExpenses[[#Totals],[نوفمبر]] -> 6% | AC21: =tblExpenses[[#This Row],[ديسمبر]]/tblExpenses[[#Totals],[ديسمبر]] -> 9% | AD21: =tblExpenses[[#This Row],[سنوياً]]/tblExpenses[[#Totals],[سنوياً]] -> 6%
B22: المصاريف الأخرى (حدد) | D22: ر.س.‏ 11 | E22: ر.س.‏ 8 | F22: ر.س.‏ 25 | G22: ر.س.‏ 11 | H22: ر.س.‏ 9 | I22: ر.س.‏ 24 | J22: ر.س.‏ 13 | K22: ر.س.‏ 14 | L22: ر.س.‏ 19 | M22: ر.س.‏ 24 | N22: ر.س.‏ 15 | O22: ر.س.‏ 7 | P22: =SUM(tblExpenses[[#This Row],[العمود 1]:[ديسمبر]]) -> ر.س.‏ 180 | Q22: 1% | R22: =tblExpenses[[#This Row],[العمود 1]]/tblExpenses[[#Totals],[العمود 1]] -> 5% | S22: =tblExpenses[[#This Row],[فبراير]]/tblExpenses[[#Totals],[فبراير]] -> 4% | T22: =tblExpenses[[#This Row],[مارس]]/tblExpenses[[#Totals],[مارس]] -> 10% | U22: =tblExpenses[[#This Row],[أبريل]]/tblExpenses[[#Totals],[أبريل]] -> 4% | V22: =tblExpenses[[#This Row],[مايو]]/tblExpenses[[#Totals],[مايو]] -> 4% | W22: =tblExpenses[[#This Row],[يونيو]]/tblExpenses[[#Totals],[يونيو]] -> 9% | X22: =tblExpenses[[#This Row],[يوليو]]/tblExpenses[[#Totals],[يوليو]] -> 5% | Y22: =tblExpenses[[#This Row],[أغسطس]]/tblExpenses[[#Totals],[أغسطس]] -> 6% | Z22: =tblExpenses[[#This Row],[سبتمبر]]/tblExpenses[[#Totals],[سبتمبر]] -> 8% | AA22: =tblExpenses[[#This Row],[أكتوبر]]/tblExpenses[[#Totals],[أكتوبر]] -> 9% | AB22: =tblExpenses[[#This Row],[نوفمبر]]/tblExpenses[[#Totals],[نوفمبر]] -> 5% | AC22: =tblExpenses[[#This Row],[ديسمبر]]/tblExpenses[[#Totals],[ديسمبر]] -> 3% | AD22: =tblExpenses[[#This Row],[سنوياً]]/tblExpenses[[#Totals],[سنوياً]] -> 6%
B23: مصاريف متنوعة (غير محددة) | D23: ر.س.‏ 8 | E23: ر.س.‏ 20 | F23: ر.س.‏ 11 | G23: ر.س.‏ 11 | H23: ر.س.‏ 11 | I23: ر.س.‏ 20 | J23: ر.س.‏ 12 | K23: ر.س.‏ 16 | L23: ر.س.‏ 5 | M23: ر.س.‏ 7 | N23: ر.س.‏ 21 | O23: ر.س.‏ 3 | P23: =SUM(tblExpenses[[#This Row],[العمود 1]:[ديسمبر]]) -> ر.س.‏ 145 | Q23: 2% | R23: =tblExpenses[[#This Row],[العمود 1]]/tblExpenses[[#Totals],[العمود 1]] -> 3% | S23: =tblExpenses[[#This Row],[فبراير]]/tblExpenses[[#Totals],[فبراير]] -> 10% | T23: =tblExpenses[[#This Row],[مارس]]/tblExpenses[[#Totals],[مارس]] -> 4% | U23: =tblExpenses[[#This Row],[أبريل]]/tblExpenses[[#Totals],[أبريل]] -> 4% | V23: =tblExpenses[[#This Row],[مايو]]/tblExpenses[[#Totals],[مايو]] -> 4% | W23: =tblExpenses[[#This Row],[يونيو]]/tblExpenses[[#Totals],[يونيو]] -> 7% | X23: =tblExpenses[[#This Row],[يوليو]]/tblExpenses[[#Totals],[يوليو]] -> 5% | Y23: =tblExpenses[[#This Row],[أغسطس]]/tblExpenses[[#Totals],[أغسطس]] -> 7% | Z23: =tblExpenses[[#This Row],[سبتمبر]]/tblExpenses[[#Totals],[سبتمبر]] -> 2% | AA23: =tblExpenses[[#This Row],[أكتوبر]]/tblExpenses[[#Totals],[أكتوبر]] -> 3% | AB23: =tblExpenses[[#This Row],[نوفمبر]]/tblExpenses[[#Totals],[نوفمبر]] -> 7% | AC23: =tblExpenses[[#This Row],[ديسمبر]]/tblExpenses[[#Totals],[ديسمبر]] -> 1% | AD23: =tblExpenses[[#This Row],[سنوياً]]/tblExpenses[[#Totals],[سنوياً]] -> 5%
B24: إجمالي المصاريف | D24: =SUBTOTAL(109,tblExpenses[العمود 1]) -> ر.س.‏ 236 | E24: =SUBTOTAL(109,tblExpenses[فبراير]) -> ر.س.‏ 205 | F24: =SUBTOTAL(109,tblExpenses[مارس]) -> ر.س.‏ 249 | G24: =SUBTOTAL(109,tblExpenses[أبريل]) -> ر.س.‏ 261 | H24: =SUBTOTAL(109,tblExpenses[مايو]) -> ر.س.‏ 257 | I24: =SUBTOTAL(109,tblExpenses[يونيو]) -> ر.س.‏ 274 | J24: =SUBTOTAL(109,tblExpenses[يوليو]) -> ر.س.‏ 266 | K24: =SUBTOTAL(109,tblExpenses[أغسطس]) -> ر.س.‏ 235 | L24: =SUBTOTAL(109,tblExpenses[سبتمبر]) -> ر.س.‏ 230 | M24: =SUBTOTAL(109,tblExpenses[أكتوبر]) -> ر.س.‏ 259 | N24: =SUBTOTAL(109,tblExpenses[نوفمبر]) -> ر.س.‏ 296 | O24: =SUBTOTAL(109,tblExpenses[ديسمبر]) -> ر.س.‏ 231 | P24: =SUBTOTAL(109,tblExpenses[سنوياً]) -> ر.س.‏ 2,999 | Q24: =SUBTOTAL(109,tblExpenses[النسبة المئوية للفهرس]) -> 100% | R24: =SUBTOTAL(109,tblExpenses[النسبة المئوية في يناير]) -> 100% | S24: =SUBTOTAL(109,tblExpenses[النسبة المئوية في فبراير]) -> 100% | T24: =SUBTOTAL(109,tblExpenses[النسبة المئوية في مارس]) -> 100% | U24: =SUBTOTAL(109,tblExpenses[النسبة المئوية في أبريل]) -> 100% | V24: =SUBTOTAL(109,tblExpenses[النسبة المئوية في مايو]) -> 100% | W24: =SUBTOTAL(109,tblExpenses[النسبة المئوية في يونيو]) -> 100% | X24: =SUBTOTAL(109,tblExpenses[النسبة المئوية في يوليو]) -> 100% | Y24: =SUBTOTAL(109,tblExpenses[النسبة المئوية في أغسطس]) -> 100% | Z24: =SUBTOTAL(109,tblExpenses[النسبة المئوية في سبتمبر]) -> 100% | AA24: =SUBTOTAL(109,tblExpenses[النسبة المئوية في أكتوبر]) -> 100% | AB24: =SUBTOTAL(109,tblExpenses[النسبة المئوية في نوفمبر]) -> 100% | AC24: =SUBTOTAL(109,tblExpenses[النسبة المئوية في ديسمبر]) -> 100% | AD24: =SUBTOTAL(109,tblExpenses[النسبة المئوية في السنة]) -> 100%
B26: الربح الصافي | D26: ='تكلفة المبيعات'!$D$14-tblExpenses[[#Totals],[العمود 1]] -> ر.س.‏ 123 | E26: ='تكلفة المبيعات'!E14-tblExpenses[[#Totals],[فبراير]] -> ر.س.‏ 175 | F26: ='تكلفة المبيعات'!F14-tblExpenses[[#Totals],[مارس]] -> ر.س.‏ 256 | G26: ='تكلفة المبيعات'!G14-tblExpenses[[#Totals],[أبريل]] -> ر.س.‏ 109 | H26: ='تكلفة المبيعات'!H14-tblExpenses[[#Totals],[مايو]] -> ر.س.‏ 156 | I26: ='تكلفة المبيعات'!I14-tblExpenses[[#Totals],[يونيو]] -> ر.س.‏ 8- | J26: ='تكلفة المبيعات'!J14-tblExpenses[[#Totals],[يوليو]] -> ر.س.‏ 32 | K26: ='تكلفة المبيعات'!K14-tblExpenses[[#Totals],[أغسطس]] -> ر.س.‏ 214 | L26: ='تكلفة المبيعات'!L14-tblExpenses[[#Totals],[سبتمبر]] -> ر.س.‏ 100 | M26: ='تكلفة المبيعات'!M14-tblExpenses[[#Totals],[أكتوبر]] -> ر.س.‏ 148 | N26: ='تكلفة المبيعات'!N14-tblExpenses[[#Totals],[نوفمبر]] -> ر.س.‏ 179 | O26: ='تكلفة المبيعات'!O14-tblExpenses[[#Totals],[ديسمبر]] -> ر.س.‏ 359 | P26: ='تكلفة المبيعات'!P14-tblExpenses[[#Totals],[سنوياً]] -> ر.س.‏ 1,843 | R26: =D26/$P$26 -> 7% | S26: =E26/$P$26 -> 9% | T26: 14% | U26: 6% | V26: 8% | W26: -0% | X26: 2% | Y26: 12% | Z26: 5% | AA26: 8% | AB26: 10% | AC26: 19% | AD26: 100%
